Workbook

Sheet Obsah
F2: 100
D4: B6 Konzervatoře
D5: Zdroje dat jsou uvedeny v zápatí jednotlivých tabulek
D7: Text | F7: Obsah
D9: Tabulka 1 | F9: ='B6.1'!H4&" "&'B6.1'!D5 -> Konzervatoře – počet škol ve školním roce 2009/10 až 2019/20 – podle zřizovatele
D11: Tabulka 2 | F11: ='B6.2'!H4&" "&'B6.2'!D5 -> Konzervatoře – počet škol – ve školním roce 2009/10 až 2019/20 – podle území
D13: Tabulka 3 | F13: ='B6.3'!H4&" "&'B6.3'!D5 -> Konzervatoře – počet žáků/dívek, nově přijatých a absolventů ve školním roce 2009/10 až 2019/20 – podle zřizovatele
D15: Tabulka 4 | F15: ='B6.4'!H4&" "&'B6.4'!D5 -> Konzervatoře, denní forma vzdělávání – počet žáků, nově přijatých a absolventů – ve školním roce 2009/10 až 2019/20 – podle délky vzdělávání a zřizovatele
D17: Tabulka 5 | F17: ='B6.5'!H4&" "&'B6.5'!D5 -> Konzervatoře, ostatní formy vzdělávání – počet žáků, nově přijatých a absolventů – ve školním roce 2009/10 až 2019/20 – podle zřizovatele
D19: Tabulka 6 | F19: ='B6.6'!H4&" "&'B6.6'!D5 -> Konzervatoře – počet podaných přihlášek, počet přijatých přihlášek a úspěšnost v 1. kole přijímacího řízení do denní formy vzdělávání – ve školním roce 2009/10 až 2019/20 – podle zřizovatele a délky vzdělávání
D21: Tabulka 7 | F21: ='B6.7'!H4&" "&'B6.7'!D5 -> Konzervatoře – počet učitelů/žen (přepočtené počty – stavy k 30. 9.) ve školním roce 2009/10 až 2019/20 – podle zřizovatele
D23: Tabulka 8 | F23: ='B6.8'!H4&" "&'B6.8'!D5 -> Konzervatoře, denní forma vzdělávání – žáci ve školním roce 2009/10 až 2019/20 – podle území
D25: Tabulka 9 | F25: ='B6.9'!H4&" "&'B6.9'!D5 -> Konzervatoře, denní forma vzdělávání – nově přijatí ve školním roce 2009/10 až 2019/20 – podle území
D27: Tabulka 10 | F27: ='B6.10'!H4&" "&'B6.10'!D5 -> Konzervatoře, denní forma vzdělávání – absolventi ve školním roce 2009/10 až 2019/20 – podle území
D29: Tabulka 11 | F29: ='B6.11'!H4&" "&'B6.11'!D5 -> Konzervatoře – přepočtené počty zaměstnanců v letech 2009 až 2019
D31: Tabulka 12 | F31: ='B6.12'!H4&" "&'B6.12'!D5 -> Konzervatoře – průměrné měsíční mzdy zaměstnanců v letech 2009 až 2019
D33: Tabulka 13 | F33: ='B6.13'!$G$4&" "&'B6.13'!$D$5 -> Konzervatoře – výdaje na konzervatoře v letech 2009 až 2019 (bez škol pro žáky se SVP)
E34: Obrazová příloha
D36: Graf 1 | F36: ='GB1'!$G$4&" "&'GB1'!$D$5 -> Konzervatoře, denní forma vzdělávání – žáci, nově přijatí a absolventi ve školním roce 2009/10 až 2019/20 – podle délky vzdělávání
D38: Graf 2 | F38: ='GB2'!$G$4&" "&'GB2'!$D$5 -> Konzervatoře – všichni zřizovatelé – přepočtené počty zaměstnanců a učitelů, průměrné měsíční nominální mzdy a reálné mzdy pracovníků v letech 2009 až 2019

Sheet B6.1
D4: Tab. B6.1: | H4: Konzervatoře – počet škol
B5: 0 | D5: ve školním roce 2009/10 až 2019/20 – podle zřizovatele
D7: Zřizovatel | J7: 2003/04 | K7: 2004/05 | L7: 2005/06 | M7: 2006/07 | N7: 2007/08 | O7: 2008/09 | P7: 2009/10 | Q7: 2010/11 | R7: 2011/12 | S7: 2012/13 | T7: 2013/14 | U7: 2014/15 | V7: 2015/16 | W7: 2016/17 | X7: 2017/18 | Y7: 2018/19 | Z7: 2019/20
D12: Konzervatoře celkem | J12: 17 | K12: 17 | L12: 17 | M12: 18 | N12: 19 | O12: 18 | P12: 17 | Q12: 18 | R12: 18 | S12: 18 | T12: 18 | U12: 18 | V12: 18 | W12: 18 | X12: 18 | Y12: 18 | Z12: 18
D13: Veřejný celkem | J13: 14 | K13: 14 | L13: 14 | M13: 14 | N13: 14 | O13: 13 | P13: 13 | Q13: 13 | R13: 13 | S13: 13 | T13: 13 | U13: 13 | V13: 13 | W13: 13 | X13: 13 | Y13: 13 | Z13: 13
E14: v tom | F14: MŠMT | J14: 1 | K14: 1 | L14: 1 | M14: 1 | N14: 1 | O14: 1 | P14: 1 | Q14: 1 | R14: 1 | S14: 1 | T14: 1 | U14: 1 | V14: 1 | W14: 1 | X14: 1 | Y14: 1 | Z14: 1
F15: obec | J15: – | K15: – | L15: – | M15: 0 | N15: 0 | O15: 0 | P15: 0 | Q15: 0 | R15: 0 | S15: 0 | T15: 0 | U15: 0 | V15: 0 | W15: 0 | X15: 0 | Y15: 0 | Z15: 0
F16: jiný resort | J16: 1 | K16: 1 | L16: 1 | M16: 1 | N16: 1 | O16: 0 | P16: 0 | Q16: 0 | R16: 0 | S16: 0 | T16: 0 | U16: 0 | V16: 0 | W16: 0 | X16: 0 | Y16: 0 | Z16: 0
F17: kraj | J17: 12 | K17: 12 | L17: 12 | M17: 12 | N17: 12 | O17: 12 | P17: 12 | Q17: 12 | R17: 12 | S17: 12 | T17: 12 | U17: 12 | V17: 12 | W17: 12 | X17: 12 | Y17: 12 | Z17: 12
D18: Neveřejný celkem | J18: 3 | K18: 3 | L18: 3 | M18: 4 | N18: 5 | O18: 5 | P18: 4 | Q18: 5 | R18: 5 | S18: 5 | T18: 5 | U18: 5 | V18: 5 | W18: 5 | X18: 5 | Y18: 5 | Z18: 5
E19: v tom | F19: privátní sektor | J19: 2 | K19: 2 | L19: 2 | M19: 2 | N19: 3 | O19: 3 | P19: 2 | Q19: 3 | R19: 3 | S19: 3 | T19: 3 | U19: 3 | V19: 3 | W19: 3 | X19: 3 | Y19: 3 | Z19: 3
F20: církevní | J20: 1 | K20: 1 | L20: 1 | M20: 2 | N20: 2 | O20: 2 | P20: 2 | Q20: 2 | R20: 2 | S20: 2 | T20: 2 | U20: 2 | V20: 2 | W20: 2 | X20: 2 | Y20: 2 | Z20: 2
Z21: Zdroj: databáze MŠMT

Sheet B6.2
D4: Tab. B6.2: | H4: Konzervatoře – počet škol
B5: 0 | D5: – ve školním roce 2009/10 až 2019/20 – podle území
D7: Území | J7: 2003/04 | K7: 2004/05 | L7: 2005/06 | M7: 2006/07 | N7: 2007/08 | O7: 2008/09 | P7: 2009/10 | Q7: 2010/11 | R7: 2011/12 | S7: 2012/13 | T7: 2013/14 | U7: 2014/15 | V7: 2015/16 | W7: 2016/17 | X7: 2017/18 | Y7: 2018/19 | Z7: 2019/20
E12: Česká republika | H12: CZ0 | J12: 17 | K12: 17 | L12: 17 | M12: 18 | N12: 19 | O12: 18 | P12: 17 | Q12: 18 | R12: 18 | S12: 18 | T12: 18 | U12: 18 | V12: 18 | W12: 18 | X12: 18 | Y12: 18 | Z12: 18
E13: Praha | H13: CZ01 | J13: 7 | K13: 7 | L13: 7 | M13: 7 | N13: 8 | O13: 8 | P13: 7 | Q13: 8 | R13: 8 | S13: 8 | T13: 8 | U13: 8 | V13: 8 | W13: 8 | X13: 8 | Y13: 8 | Z13: 8
F14: Hlavní město Praha | H14: CZ010 | J14: 7 | K14: 7 | L14: 7 | M14: 7 | N14: 8 | O14: 8 | P14: 7 | Q14: 8 | R14: 8 | S14: 8 | T14: 8 | U14: 8 | V14: 8 | W14: 8 | X14: 8 | Y14: 8 | Z14: 8
E15: Střední Čechy | H15: CZ02 | J15: 0 | K15: 0 | L15: 0 | M15: 0 | N15: 0 | O15: 0 | P15: 0 | Q15: 0 | R15: 0 | S15: 0 | T15: 0 | U15: 0 | V15: 0 | W15: 0 | X15: 0 | Y15: 0 | Z15: 0
F16: Středočeský kraj | H16: CZ020 | J16: 0 | K16: 0 | L16: 0 | M16: 0 | N16: 0 | O16: 0 | P16: 0 | Q16: 0 | R16: 0 | S16: 0 | T16: 0 | U16: 0 | V16: 0 | W16: 0 | X16: 0 | Y16: 0 | Z16: 0
E17: Jihozápad | H17: CZ03 | J17: 2 | K17: 2 | L17: 2 | M17: 2 | N17: 2 | O17: 2 | P17: 2 | Q17: 2 | R17: 2 | S17: 2 | T17: 2 | U17: 2 | V17: 2 | W17: 2 | X17: 2 | Y17: 2 | Z17: 2
F18: Jihočeský kraj | H18: CZ031 | J18: 1 | K18: 1 | L18: 1 | M18: 1 | N18: 1 | O18: 1 | P18: 1 | Q18: 1 | R18: 1 | S18: 1 | T18: 1 | U18: 1 | V18: 1 | W18: 1 | X18: 1 | Y18: 1 | Z18: 1
F19: Plzeňský kraj | H19: CZ032 | J19: 1 | K19: 1 | L19: 1 | M19: 1 | N19: 1 | O19: 1 | P19: 1 | Q19: 1 | R19: 1 | S19: 1 | T19: 1 | U19: 1 | V19: 1 | W19: 1 | X19: 1 | Y19: 1 | Z19: 1
E20: Severozápad | H20: CZ04 | J20: 2 | K20: 2 | L20: 2 | M20: 2 | N20: 2 | O20: 1 | P20: 1 | Q20: 1 | R20: 1 | S20: 1 | T20: 1 | U20: 1 | V20: 1 | W20: 1 | X20: 1 | Y20: 1 | Z20: 1
F21: Karlovarský kraj | H21: CZ041 | J21: 0 | K21: 0 | L21: 0 | M21: 0 | N21: 0 | O21: 0 | P21: 0 | Q21: 0 | R21: 0 | S21: 0 | T21: 0 | U21: 0 | V21: 0 | W21: 0 | X21: 0 | Y21: 0 | Z21: 0
F22: Ústecký kraj | H22: CZ042 | J22: 2 | K22: 2 | L22: 2 | M22: 2 | N22: 2 | O22: 1 | P22: 1 | Q22: 1 | R22: 1 | S22: 1 | T22: 1 | U22: 1 | V22: 1 | W22: 1 | X22: 1 | Y22: 1 | Z22: 1
E23: Severovýchod | H23: CZ05 | J23: 1 | K23: 1 | L23: 1 | M23: 1 | N23: 1 | O23: 1 | P23: 1 | Q23: 1 | R23: 1 | S23: 1 | T23: 1 | U23: 1 | V23: 1 | W23: 1 | X23: 1 | Y23: 1 | Z23: 1
F24: Liberecký kraj | H24: CZ051 | J24: 0 | K24: 0 | L24: 0 | M24: 0 | N24: 0 | O24: 0 | P24: 0 | Q24: 0 | R24: 0 | S24: 0 | T24: 0 | U24: 0 | V24: 0 | W24: 0 | X24: 0 | Y24: 0 | Z24: 0
F25: Královéhradecký kraj | H25: CZ052 | J25: 0 | K25: 0 | L25: 0 | M25: 0 | N25: 0 | O25: 0 | P25: 0 | Q25: 0 | R25: 0 | S25: 0 | T25: 0 | U25: 0 | V25: 0 | W25: 0 | X25: 0 | Y25: 0 | Z25: 0
F26: Pardubický kraj | H26: CZ053 | J26: 1 | K26: 1 | L26: 1 | M26: 1 | N26: 1 | O26: 1 | P26: 1 | Q26: 1 | R26: 1 | S26: 1 | T26: 1 | U26: 1 | V26: 1 | W26: 1 | X26: 1 | Y26: 1 | Z26: 1
E27: Jihovýchod | H27: CZ06 | J27: 2 | K27: 2 | L27: 2 | M27: 2 | N27: 2 | O27: 2 | P27: 2 | Q27: 2 | R27: 2 | S27: 2 | T27: 2 | U27: 2 | V27: 2 | W27: 2 | X27: 2 | Y27: 2 | Z27: 2
F28: Kraj Vysočina | H28: CZ063 | J28: 0 | K28: 0 | L28: 0 | M28: 0 | N28: 0 | O28: 0 | P28: 0 | Q28: 0 | R28: 0 | S28: 0 | T28: 0 | U28: 0 | V28: 0 | W28: 0 | X28: 0 | Y28: 0 | Z28: 0
F29: Jihomoravský kraj | H29: CZ064 | J29: 2 | K29: 2 | L29: 2 | M29: 2 | N29: 2 | O29: 2 | P29: 2 | Q29: 2 | R29: 2 | S29: 2 | T29: 2 | U29: 2 | V29: 2 | W29: 2 | X29: 2 | Y29: 2 | Z29: 2
E30: Střední Morava | H30: CZ07 | J30: 2 | K30: 2 | L30: 2 | M30: 2 | N30: 2 | O30: 2 | P30: 2 | Q30: 2 | R30: 2 | S30: 2 | T30: 2 | U30: 2 | V30: 2 | W30: 2 | X30: 2 | Y30: 2 | Z30: 2
F31: Olomoucký kraj | H31: CZ071 | J31: 0 | K31: 0 | L31: 0 | M31: 0 | N31: 0 | O31: 0 | P31: 1 | Q31: 1 | R31: 1 | S31: 1 | T31: 1 | U31: 1 | V31: 1 | W31: 1 | X31: 1 | Y31: 1 | Z31: 1
F32: Zlínský kraj | H32: CZ072 | J32: 2 | K32: 2 | L32: 2 | M32: 2 | N32: 2 | O32: 2 | P32: 1 | Q32: 1 | R32: 1 | S32: 1 | T32: 1 | U32: 1 | V32: 1 | W32: 1 | X32: 1 | Y32: 1 | Z32: 1
E33: Moravskoslezsko | H33: CZ08 | J33: 1 | K33: 1 | L33: 1 | M33: 2 | N33: 2 | O33: 2 | P33: 2 | Q33: 2 | R33: 2 | S33: 2 | T33: 2 | U33: 2 | V33: 2 | W33: 2 | X33: 2 | Y33: 2 | Z33: 2
F34: Moravskoslezský kraj | H34: CZ080 | J34: 1 | K34: 1 | L34: 1 | M34: 2 | N34: 2 | O34: 2 | P34: 2 | Q34: 2 | R34: 2 | S34: 2 | T34: 2 | U34: 2 | V34: 2 | W34: 2 | X34: 2 | Y34: 2 | Z34: 2
Z35: Zdroj: databáze MŠMT

Sheet B6.3
D4: Tab. B6.3: | H4: Konzervatoře – počet žáků/dívek, nově přijatých a absolventů
B5: 12 | D5: ve školním roce 2009/10 až 2019/20 – podle zřizovatele
D7: Zřizovatel | J7: 2003/04 | K7: 2004/05 | L7: 2005/06 | M7: 2006/07 | N7: 2007/08 | O7: 2008/09 | P7: 2009/10 | Q7: 2010/11 | R7: 2011/12 | S7: 2012/13 | T7: 2013/14 | U7: 2014/15 | V7: 2015/16 | W7: 2016/17 | X7: 2017/18 | Y7: 2018/19 | Z7: 2019/20
D12: Žáci
E13: Celkem | J13: 3543 | K13: 3505 | L13: 3495 | M13: 3534 | N13: 3606 | O13: 3535 | P13: 3435 | Q13: 3560 | R13: 3557 | S13: 3655 | T13: 3690 | U13: 3752 | V13: 3733 | W13: 3795 | X13: 3781 | Y13: 3813 | Z13: 3836
E14: Veřejný | J14: 3240 | K14: 3188 | L14: 3183 | M14: 3156 | N14: 3170 | O14: 3093 | P14: 3060 | Q14: 2970 | R14: 2927 | S14: 2975 | T14: 2975 | U14: 3023 | V14: 2995 | W14: 3014 | X14: 2976 | Y14: 3009 | Z14: 3036
E15: v tom | F15: MŠMT | J15: 78 | K15: 79 | L15: 78 | M15: 75 | N15: 81 | O15: 76 | P15: 74 | Q15: 69 | R15: 60 | S15: 71 | T15: 69 | U15: 79 | V15: 86 | W15: 82 | X15: 82 | Y15: 82 | Z15: 90
F16: obec | J16: 0 | K16: 0 | L16: 0 | M16: 0 | N16: 0 | O16: 0 | P16: 0 | Q16: 0 | R16: 0 | S16: 0 | T16: 0 | U16: 0 | V16: 0 | W16: 0 | X16: 0 | Y16: 0 | Z16: 0
F17: jiný resort | J17: 69 | K17: 42 | L17: 47 | M17: 42 | N17: 19 | O17: 0 | P17: 0 | Q17: 0 | R17: 0 | S17: 0 | T17: 0 | U17: 0 | V17: 0 | W17: 0 | X17: 0 | Y17: 0 | Z17: 0
F18: kraj | J18: 3093 | K18: 3067 | L18: 3058 | M18: 3039 | N18: 3070 | O18: 3017 | P18: 2986 | Q18: 2901 | R18: 2867 | S18: 2904 | T18: 2906 | U18: 2944 | V18: 2909 | W18: 2932 | X18: 2894 | Y18: 2927 | Z18: 2946
E19: Privátní sektor | J19: 203 | K19: 213 | L19: 210 | M19: 205 | N19: 258 | O19: 257 | P19: 186 | Q19: 401 | R19: 429 | S19: 455 | T19: 480 | U19: 486 | V19: 505 | W19: 542 | X19: 558 | Y19: 560 | Z19: 552
E20: Církev | J20: 100 | K20: 104 | L20: 102 | M20: 173 | N20: 178 | O20: 185 | P20: 189 | Q20: 189 | R20: 201 | S20: 225 | T20: 235 | U20: 243 | V20: 233 | W20: 239 | X20: 247 | Y20: 244 | Z20: 248
E21: Nově přijatí | J21: 590 | K21: 615 | L21: 558 | M21: 596 | N21: 644 | O21: 634 | P21: 598 | Q21: 615 | R21: 640 | S21: 692 | T21: 659 | U21: 694 | V21: 639 | W21: 675 | X21: 680 | Y21: 697 | Z21: 647
E22: Veřejný | J22: 557 | K22: 575 | L22: 529 | M22: 545 | N22: 567 | O22: 557 | P22: 543 | Q22: 473 | R22: 514 | S22: 550 | T22: 541 | U22: 562 | V22: 522 | W22: 525 | X22: 510 | Y22: 551 | Z22: 508
E23: v tom | F23: MŠMT | J23: 14 | K23: 18 | L23: 10 | M23: 10 | N23: 17 | O23: 10 | P23: 11 | Q23: 7 | R23: 5 | S23: 21 | T23: 11 | U23: 18 | V23: 18 | W23: 10 | X23: 8 | Y23: 19 | Z23: 20
F24: obec | J24: 0 | K24: 0 | L24: 0 | M24: 0 | N24: 0 | O24: 0 | P24: 0 | Q24: 0 | R24: 0 | S24: 0 | T24: 0 | U24: 0 | V24: 0 | W24: 0 | X24: 0 | Y24: 0 | Z24: 0
F25: jiný resort | J25: 0 | K25: 0 | L25: 1 | M25: 0 | N25: 0 | O25: 0 | P25: 0 | Q25: 0 | R25: 0 | S25: 0 | T25: 0 | U25: 0 | V25: 0 | W25: 0 | X25: 0 | Y25: 0 | Z25: 0
F26: kraj | J26: 543 | K26: 557 | L26: 518 | M26: 535 | N26: 550 | O26: 547 | P26: 532 | Q26: 466 | R26: 509 | S26: 529 | T26: 530 | U26: 544 | V26: 504 | W26: 515 | X26: 502 | Y26: 532 | Z26: 488
E27: Privátní sektor | J27: 16 | K27: 18 | L27: 9 | M27: 12 | N27: 42 | O27: 37 | P27: 10 | Q27: 99 | R27: 83 | S27: 86 | T27: 75 | U27: 83 | V27: 78 | W27: 99 | X27: 119 | Y27: 101 | Z27: 97
E28: Církev | J28: 17 | K28: 22 | L28: 20 | M28: 39 | N28: 35 | O28: 40 | P28: 45 | Q28: 43 | R28: 43 | S28: 56 | T28: 43 | U28: 49 | V28: 39 | W28: 51 | X28: 51 | Y28: 45 | Z28: 42
E29: Absolventi celkem1) | J29: 471 | K29: 421 | L29: 431 | M29: 441 | N29: 487 | O29: 434 | P29: 387 | Q29: 373 | R29: 376 | S29: 394 | T29: 371 | U29: 381 | V29: 333 | W29: 367 | X29: 361 | Y29: 347 | Z29: .
E30: Veřejný | J30: 448 | K30: 389 | L30: 398 | M30: 409 | N30: 407 | O30: 387 | P30: 341 | Q30: 338 | R30: 345 | S30: 354 | T30: 323 | U30: 333 | V30: 272 | W30: 308 | X30: 300 | Y30: 310 | Z30: .
E31: v tom | F31: MŠMT | J31: 14 | K31: 6 | L31: 18 | M31: 7 | N31: 10 | O31: 10 | P31: 8 | Q31: 8 | R31: 7 | S31: 6 | T31: 9 | U31: 5 | V31: 0 | W31: 4 | X31: 15 | Y31: 7 | Z31: .
F32: obec | J32: 0 | K32: 0 | L32: 0 | M32: 0 | N32: 0 | O32: 0 | P32: 0 | Q32: 0 | R32: 0 | S32: 0 | T32: 0 | U32: 0 | V32: 0 | W32: 0 | X32: 0 | Y32: 0 | Z32: .
F33: jiný resort | J33: 29 | K33: 0 | L33: 0 | M33: 20 | N33: 18 | O33: 0 | P33: 0 | Q33: 0 | R33: 0 | S33: 0 | T33: 0 | U33: 0 | V33: 0 | W33: 0 | X33: 0 | Y33: 0 | Z33: .
F34: kraj | J34: 405 | K34: 383 | L34: 380 | M34: 382 | N34: 379 | O34: 377 | P34: 333 | Q34: 330 | R34: 338 | S34: 348 | T34: 314 | U34: 328 | V34: 272 | W34: 304 | X34: 285 | Y34: 303 | Z34: .
E35: Privátní sektor | J35: 7 | K35: 16 | L35: 20 | M35: 22 | N35: 55 | O35: 24 | P35: 24 | Q35: 22 | R35: 16 | S35: 31 | T35: 33 | U35: 28 | V35: 35 | W35: 38 | X35: 33 | Y35: 20 | Z35: .
E36: Církev | J36: 16 | K36: 16 | L36: 13 | M36: 10 | N36: 25 | O36: 23 | P36: 22 | Q36: 13 | R36: 15 | S36: 9 | T36: 15 | U36: 20 | V36: 26 | W36: 21 | X36: 28 | Y36: 17 | Z36: .
D37: Dívky
E38: Celkem | J38: 2080 | K38: 2063 | L38: 2061 | M38: 2091 | N38: 2161 | O38: 2141 | P38: 2099 | Q38: 2176 | R38: 2171 | S38: 2247 | T38: 2285 | U38: 2303 | V38: 2324 | W38: 2387 | X38: 2430 | Y38: 2444 | Z38: 2441
E39: Veřejný | J39: 1840 | K39: 1819 | L39: 1827 | M39: 1812 | N39: 1837 | O39: 1819 | P39: 1809 | Q39: 1770 | R39: 1735 | S39: 1763 | T39: 1773 | U39: 1785 | V39: 1795 | W39: 1829 | X39: 1845 | Y39: 1866 | Z39: 1864
E40: v tom | F40: MŠMT | J40: 56 | K40: 56 | L40: 55 | M40: 55 | N40: 58 | O40: 52 | P40: 50 | Q40: 40 | R40: 36 | S40: 44 | T40: 43 | U40: 47 | V40: 50 | W40: 47 | X40: 43 | Y40: 51 | Z40: 53
F41: obec | J41: 0 | K41: 0 | L41: 0 | M41: 0 | N41: 0 | O41: 0 | P41: 0 | Q41: 0 | R41: 0 | S41: 0 | T41: 0 | U41: 0 | V41: 0 | W41: 0 | X41: 0 | Y41: 0 | Z41: 0
F42: jiný resort | J42: 0 | K42: 0 | L42: 0 | M42: 0 | N42: 0 | O42: 0 | P42: 0 | Q42: 0 | R42: 0 | S42: 0 | T42: 0 | U42: 0 | V42: 0 | W42: 0 | X42: 0 | Y42: 0 | Z42: 0
F43: kraj | J43: 1784 | K43: 1763 | L43: 1772 | M43: 1757 | N43: 1779 | O43: 1767 | P43: 1759 | Q43: 1730 | R43: 1699 | S43: 1719 | T43: 1730 | U43: 1738 | V43: 1745 | W43: 1782 | X43: 1802 | Y43: 1815 | Z43: 1811
E44: Privátní sektor | J44: 172 | K44: 178 | L44: 172 | M44: 164 | N44: 205 | O44: 194 | P44: 156 | Q44: 273 | R44: 288 | S44: 316 | T44: 338 | U44: 345 | V44: 365 | W44: 394 | X44: 407 | Y44: 406 | Z44: 405
E45: Církev | J45: 68 | K45: 66 | L45: 62 | M45: 115 | N45: 119 | O45: 128 | P45: 134 | Q45: 133 | R45: 148 | S45: 168 | T45: 174 | U45: 173 | V45: 164 | W45: 164 | X45: 178 | Y45: 172 | Z45: 172
E46: Nově přijaté | J46: 350 | K46: 344 | L46: 327 | M46: 348 | N46: 385 | O46: 373 | P46: 347 | Q46: 341 | R46: 381 | S46: 422 | T46: 406 | U46: 418 | V46: 388 | W46: 425 | X46: 444 | Y46: 429 | Z46: 388
E47: Veřejný | J47: 324 | K47: 318 | L47: 307 | M47: 307 | N47: 328 | O47: 317 | P47: 304 | Q47: 249 | R47: 291 | S47: 323 | T47: 327 | U47: 337 | V47: 306 | W47: 324 | X47: 324 | Y47: 333 | Z47: 294
E48: v tom | F48: MŠMT | J48: 12 | K48: 15 | L48: 5 | M48: 8 | N48: 9 | O48: 5 | P48: 7 | Q48: 2 | R48: 3 | S48: 14 | T48: 5 | U48: 13 | V48: 11 | W48: 4 | X48: 3 | Y48: 12 | Z48: 12
F49: obec | J49: 0 | K49: 0 | L49: 0 | M49: 0 | N49: 0 | O49: 0 | P49: 0 | Q49: 0 | R49: 0 | S49: 0 | T49: 0 | U49: 0 | V49: 0 | W49: 0 | X49: 0 | Y49: 0 | Z49: 0
F50: jiný resort | J50: 0 | K50: 0 | L50: 0 | M50: 0 | N50: 0 | O50: 0 | P50: 0 | Q50: 0 | R50: 0 | S50: 0 | T50: 0 | U50: 0 | V50: 0 | W50: 0 | X50: 0 | Y50: 0 | Z50: 0
F51: kraj | J51: 312 | K51: 303 | L51: 302 | M51: 299 | N51: 319 | O51: 312 | P51: 297 | Q51: 247 | R51: 288 | S51: 309 | T51: 322 | U51: 324 | V51: 295 | W51: 320 | X51: 321 | Y51: 321 | Z51: 282
E52: Privátní sektor | J52: 15 | K52: 14 | L52: 7 | M52: 9 | N52: 31 | O52: 25 | P52: 9 | Q52: 61 | R52: 55 | S52: 58 | T52: 47 | U52: 52 | V52: 55 | W52: 66 | X52: 78 | Y52: 69 | Z52: 64
E53: Církev | J53: 11 | K53: 12 | L53: 13 | M53: 32 | N53: 26 | O53: 31 | P53: 34 | Q53: 31 | R53: 35 | S53: 41 | T53: 32 | U53: 29 | V53: 27 | W53: 35 | X53: 42 | Y53: 27 | Z53: 30
E54: Absolventky celkem1) | J54: 256 | K54: 257 | L54: 271 | M54: 282 | N54: 261 | O54: 275 | P54: 227 | Q54: 244 | R54: 237 | S54: 262 | T54: 246 | U54: 245 | V54: 221 | W54: 235 | X54: 231 | Y54: 238 | Z54: .
E55: Veřejný | J55: 239 | K55: 230 | L55: 245 | M55: 256 | N55: 209 | O55: 240 | P55: 196 | Q55: 219 | R55: 215 | S55: 229 | T55: 207 | U55: 207 | V55: 175 | W55: 189 | X55: 187 | Y55: 209 | Z55: .
E56: v tom | F56: MŠMT | J56: 11 | K56: 3 | L56: 14 | M56: 5 | N56: 7 | O56: 8 | P56: 8 | Q56: 6 | R56: 5 | S56: 4 | T56: 5 | U56: 4 | V56: 0 | W56: 3 | X56: 5 | Y56: 7 | Z56: .
F57: obec | J57: 0 | K57: 0 | L57: 0 | M57: 0 | N57: 0 | O57: 0 | P57: 0 | Q57: 0 | R57: 0 | S57: 0 | T57: 0 | U57: 0 | V57: 0 | W57: 0 | X57: 0 | Y57: 0 | Z57: .
F58: jiný resort | J58: 0 | K58: 0 | L58: 0 | M58: 0 | N58: 0 | O58: 0 | P58: 0 | Q58: 0 | R58: 0 | S58: 0 | T58: 0 | U58: 0 | V58: 0 | W58: 0 | X58: 0 | Y58: 0 | Z58: .
F59: kraj | J59: 228 | K59: 227 | L59: 231 | M59: 251 | N59: 202 | O59: 232 | P59: 188 | Q59: 213 | R59: 210 | S59: 225 | T59: 202 | U59: 203 | V59: 175 | W59: 186 | X59: 182 | Y59: 202 | Z59: .
E60: Privátní sektor | J60: 6 | K60: 13 | L60: 16 | M60: 22 | N60: 34 | O60: 20 | P60: 19 | Q60: 17 | R60: 10 | S60: 26 | T60: 25 | U60: 22 | V60: 25 | W60: 32 | X60: 25 | Y60: 17 | Z60: .
E61: Církev | J61: 11 | K61: 14 | L61: 10 | M61: 4 | N61: 18 | O61: 15 | P61: 12 | Q61: 8 | R61: 12 | S61: 7 | T61: 14 | U61: 16 | V61: 21 | W61: 14 | X61: 19 | Y61: 12 | Z61: .
D62: Komentáře: | Z62: Zdroj: databáze MŠMT
D63: 1) | E63: V počtech absolventů/absolventek nejsou započítáni/y absolventi/absolventky, kteří/které ukončili/y vzdělávání maturitní zkouškou.

Sheet B6.4
D4: Tab. B6.4: | H4: Konzervatoře, denní forma vzdělávání – počet žáků, nově přijatých
B5: 0 | D5: a absolventů – ve školním roce 2009/10 až 2019/20 – podle délky vzdělávání a zřizovatele
D7: Délka vzdělávání Zřizovatel | J7: 2003/04 | K7: 2004/05 | L7: 2005/06 | M7: 2006/07 | N7: 2007/08 | O7: 2008/09 | P7: 2009/10 | Q7: 2010/11 | R7: 2011/12 | S7: 2012/13 | T7: 2013/14 | U7: 2014/15 | V7: 2015/16 | W7: 2016/17 | X7: 2017/18 | Y7: 2018/19 | Z7: 2019/20
E12: Žáci celkem | J12: 3371 | K12: 3366 | L12: 3334 | M12: 3356 | N12: 3411 | O12: 3323 | P12: 3238 | Q12: 3349 | R12: 3311 | S12: 3395 | T12: 3418 | U12: 3464 | V12: 3423 | W12: 3500 | X12: 3495 | Y12: 3569 | Z12: 3612
E13: v tom | F13: 6leté vzdělávání | J13: 2700 | K13: 2688 | L13: 2679 | M13: 2725 | N13: 2752 | O13: 2725 | P13: 2653 | Q13: 2792 | R13: 2783 | S13: 2880 | T13: 2892 | U13: 2915 | V13: 2822 | W13: 2902 | X13: 2893 | Y13: 2978 | Z13: 3033
F14: 8leté vzdělávání | J14: 671 | K14: 678 | L14: 655 | M14: 631 | N14: 659 | O14: 598 | P14: 585 | Q14: 557 | R14: 528 | S14: 515 | T14: 526 | U14: 549 | V14: 601 | W14: 598 | X14: 602 | Y14: 591 | Z14: 579
F15: v tom | G15: nižší stupeň | J15: 396 | K15: 379 | L15: 345 | M15: 322 | N15: 308 | O15: 282 | P15: 274 | Q15: 270 | R15: 269 | S15: 256 | T15: 251 | U15: 269 | V15: 308 | W15: 329 | X15: 349 | Y15: 339 | Z15: 314
G16: vyšší stupeň | J16: 275 | K16: 299 | L16: 310 | M16: 309 | N16: 351 | O16: 316 | P16: 311 | Q16: 287 | R16: 259 | S16: 259 | T16: 275 | U16: 280 | V16: 293 | W16: 269 | X16: 253 | Y16: 252 | Z16: 265
E17: Veřejný | J17: 3068 | K17: 3049 | L17: 3022 | M17: 2978 | N17: 2975 | O17: 2881 | P17: 2863 | Q17: 2768 | R17: 2693 | S17: 2737 | T17: 2730 | U17: 2772 | V17: 2721 | W17: 2757 | X17: 2727 | Y17: 2787 | Z17: 2812
E18: v tom | F18: MŠMT | J18: 78 | K18: 79 | L18: 78 | M18: 75 | N18: 81 | O18: 76 | P18: 74 | Q18: 69 | R18: 60 | S18: 71 | T18: 69 | U18: 79 | V18: 86 | W18: 82 | X18: 82 | Y18: 82 | Z18: 90
F19: obec | J19: 0 | K19: 0 | L19: 0 | M19: 0 | N19: 0 | O19: 0 | P19: 0 | Q19: 0 | R19: 0 | S19: 0 | T19: 0 | U19: 0 | V19: 0 | W19: 0 | X19: 0 | Y19: 0 | Z19: 0
F20: jiný resort | J20: 44 | K20: 35 | L20: 30 | M20: 20 | N20: 7 | O20: 0 | P20: 0 | Q20: 0 | R20: 0 | S20: 0 | T20: 0 | U20: 0 | V20: 0 | W20: 0 | X20: 0 | Y20: 0 | Z20: 0
F21: kraj | J21: 2946 | K21: 2935 | L21: 2914 | M21: 2883 | N21: 2887 | O21: 2805 | P21: 2789 | Q21: 2699 | R21: 2633 | S21: 2666 | T21: 2661 | U21: 2693 | V21: 2635 | W21: 2675 | X21: 2645 | Y21: 2705 | Z21: 2722
E22: Privátní sektor | J22: 203 | K22: 213 | L22: 210 | M22: 205 | N22: 258 | O22: 257 | P22: 186 | Q22: 401 | R22: 429 | S22: 455 | T22: 480 | U22: 486 | V22: 505 | W22: 542 | X22: 558 | Y22: 560 | Z22: 552
E23: Církev | J23: 100 | K23: 104 | L23: 102 | M23: 173 | N23: 178 | O23: 185 | P23: 189 | Q23: 180 | R23: 189 | S23: 203 | T23: 208 | U23: 206 | V23: 197 | W23: 201 | X23: 210 | Y23: 222 | Z23: 248
E24: Nově přijatí celkem | J24: 562 | K24: 600 | L24: 524 | M24: 555 | N24: 598 | O24: 591 | P24: 571 | Q24: 591 | R24: 585 | S24: 637 | T24: 596 | U24: 618 | V24: 588 | W24: 636 | X24: 626 | Y24: 665 | Z24: 612
E25: v tom | F25: 6leté vzdělávání | J25: 460 | K25: 498 | L25: 452 | M25: 487 | N25: 524 | O25: 518 | P25: 501 | Q25: 540 | R25: 518 | S25: 575 | T25: 526 | U25: 540 | V25: 499 | W25: 547 | X25: 543 | Y25: 579 | Z25: 539
F26: 8leté vzdělávání | J26: 102 | K26: 102 | L26: 72 | M26: 68 | N26: 74 | O26: 73 | P26: 70 | Q26: 51 | R26: 67 | S26: 62 | T26: 70 | U26: 78 | V26: 89 | W26: 89 | X26: 83 | Y26: 86 | Z26: 73
E27: Veřejný | J27: 529 | K27: 560 | L27: 495 | M27: 504 | N27: 521 | O27: 514 | P27: 516 | Q27: 455 | R27: 460 | S27: 508 | T27: 484 | U27: 503 | V27: 476 | W27: 491 | X27: 462 | Y27: 519 | Z27: 473
E28: v tom | F28: MŠMT | J28: 14 | K28: 18 | L28: 10 | M28: 10 | N28: 17 | O28: 10 | P28: 11 | Q28: 7 | R28: 5 | S28: 21 | T28: 11 | U28: 18 | V28: 18 | W28: 10 | X28: 8 | Y28: 19 | Z28: 20
F29: obec | J29: 0 | K29: 0 | L29: 0 | M29: 0 | N29: 0 | O29: 0 | P29: 0 | Q29: 0 | R29: 0 | S29: 0 | T29: 0 | U29: 0 | V29: 0 | W29: 0 | X29: 0 | Y29: 0 | Z29: 0
F30: jiný resort | J30: 0 | K30: 0 | L30: 0 | M30: 0 | N30: 0 | O30: 0 | P30: 0 | Q30: 0 | R30: 0 | S30: 0 | T30: 0 | U30: 0 | V30: 0 | W30: 0 | X30: 0 | Y30: 0 | Z30: 0
F31: kraj | J31: 515 | K31: 542 | L31: 485 | M31: 494 | N31: 504 | O31: 504 | P31: 505 | Q31: 448 | R31: 455 | S31: 487 | T31: 473 | U31: 485 | V31: 458 | W31: 481 | X31: 454 | Y31: 500 | Z31: 453
E32: Privátní sektor | J32: 16 | K32: 18 | L32: 9 | M32: 12 | N32: 42 | O32: 37 | P32: 10 | Q32: 99 | R32: 83 | S32: 86 | T32: 75 | U32: 83 | V32: 78 | W32: 99 | X32: 119 | Y32: 101 | Z32: 97
E33: Církev | J33: 17 | K33: 22 | L33: 20 | M33: 39 | N33: 35 | O33: 40 | P33: 45 | Q33: 37 | R33: 42 | S33: 43 | T33: 37 | U33: 32 | V33: 34 | W33: 46 | X33: 45 | Y33: 45 | Z33: 42
E34: Absolventi celkem1) | J34: 420 | K34: 390 | L34: 405 | M34: 410 | N34: 460 | O34: 406 | P34: 371 | Q34: 350 | R34: 339 | S34: 362 | T34: 333 | U34: 353 | V34: 312 | W34: 325 | X34: 328 | Y34: 313 | Z34: .
E35: Veřejný | J35: 377 | K35: 335 | L35: 340 | M35: 351 | N35: 386 | O35: 359 | P35: 325 | Q35: 315 | R35: 308 | S35: 322 | T35: 285 | U35: 306 | V35: 253 | W35: 267 | X35: 274 | Y35: 276 | Z35: .
E36: v tom | F36: MŠMT | J36: 14 | K36: 6 | L36: 18 | M36: 7 | N36: 10 | O36: 10 | P36: 8 | Q36: 8 | R36: 7 | S36: 6 | T36: 9 | U36: 5 | V36: 0 | W36: 4 | X36: 15 | Y36: 7 | Z36: .
F37: obec | J37: 0 | K37: 0 | L37: 0 | M37: 0 | N37: 0 | O37: 0 | P37: 0 | Q37: 0 | R37: 0 | S37: 0 | T37: 0 | U37: 0 | V37: 0 | W37: 0 | X37: 0 | Y37: 0 | Z37: .
F38: jiný resort | J38: 7 | K38: 0 | L38: 0 | M38: 11 | N38: 6 | O38: 0 | P38: 0 | Q38: 0 | R38: 0 | S38: 0 | T38: 0 | U38: 0 | V38: 0 | W38: 0 | X38: 0 | Y38: 0 | Z38: .
F39: kraj | J39: 376 | K39: 352 | L39: 354 | M39: 360 | N39: 364 | O39: 349 | P39: 317 | Q39: 307 | R39: 301 | S39: 316 | T39: 276 | U39: 301 | V39: 253 | W39: 263 | X39: 259 | Y39: 269 | Z39: .
E40: Privátní sektor | J40: 7 | K40: 16 | L40: 20 | M40: 22 | N40: 55 | O40: 24 | P40: 24 | Q40: 22 | R40: 16 | S40: 31 | T40: 33 | U40: 28 | V40: 35 | W40: 38 | X40: 33 | Y40: 20 | Z40: .
E41: Církev | J41: 16 | K41: 16 | L41: 13 | M41: 10 | N41: 25 | O41: 23 | P41: 22 | Q41: 13 | R41: 15 | S41: 9 | T41: 15 | U41: 19 | V41: 24 | W41: 20 | X41: 21 | Y41: 17 | Z41: .
D42: Komentáře: | Z42: Zdroj: databáze MŠMT
D43: 1) | E43: V počtech absolventů nejsou započítáni absolventi, kteří ukončili vzdělávání maturitní zkouškou. | AF43: .

Sheet B6.5
D4: Tab. B6.5: | H4: Konzervatoře, ostatní formy vzdělávání – počet žáků, nově přijatých
B5: 0 | D5: a absolventů – ve školním roce 2009/10 až 2019/20 – podle zřizovatele
D7: Zřizovatel | J7: 2003/04 | K7: 2004/05 | L7: 2005/06 | M7: 2006/07 | N7: 2007/08 | O7: 2008/09 | P7: 2009/10 | Q7: 2010/11 | R7: 2011/12 | S7: 2012/13 | T7: 2013/14 | U7: 2014/15 | V7: 2015/16 | W7: 2016/17 | X7: 2017/18 | Y7: 2018/19 | Z7: 2019/20
E12: Žáci celkem | J12: 172 | K12: 139 | L12: 161 | M12: 178 | N12: 195 | O12: 212 | P12: 197 | Q12: 211 | R12: 246 | S12: 260 | T12: 272 | U12: 288 | V12: 310 | W12: 295 | X12: 286 | Y12: 244 | Z12: 224
E13: Veřejný | J13: 172 | K13: 139 | L13: 161 | M13: 178 | N13: 195 | O13: 212 | P13: 197 | Q13: 202 | R13: 234 | S13: 238 | T13: 245 | U13: 251 | V13: 274 | W13: 257 | X13: 249 | Y13: 222 | Z13: 224
E14: v tom | F14: MŠMT | J14: 0 | K14: 0 | L14: 0 | M14: 0 | N14: 0 | O14: 0 | P14: 0 | Q14: 0 | R14: 0 | S14: 0 | T14: 0 | U14: 0 | V14: 0 | W14: 0 | X14: 0 | Y14: 0 | Z14: 0
F15: obec | J15: 0 | K15: 0 | L15: 0 | M15: 0 | N15: 0 | O15: 0 | P15: 0 | Q15: 0 | R15: 0 | S15: 0 | T15: 0 | U15: 0 | V15: 0 | W15: 0 | X15: 0 | Y15: 0 | Z15: 0
F16: jiný resort | J16: 25 | K16: 7 | L16: 17 | M16: 22 | N16: 12 | O16: 0 | P16: 0 | Q16: 0 | R16: 0 | S16: 0 | T16: 0 | U16: 0 | V16: 0 | W16: 0 | X16: 0 | Y16: 0 | Z16: 0
F17: kraj | J17: 147 | K17: 132 | L17: 161 | M17: 156 | N17: 183 | O17: 212 | P17: 197 | Q17: 202 | R17: 234 | S17: 238 | T17: 245 | U17: 251 | V17: 274 | W17: 257 | X17: 249 | Y17: 222 | Z17: 224
E18: Privátní sektor | J18: 0 | K18: 0 | L18: 0 | M18: 0 | N18: 0 | O18: 0 | P18: 0 | Q18: 0 | R18: 0 | S18: 0 | T18: 0 | U18: 0 | V18: 0 | W18: 0 | X18: 0 | Y18: 0 | Z18: 0
E19: Církev | J19: 0 | K19: 0 | L19: 0 | M19: 0 | N19: 0 | O19: 0 | P19: 0 | Q19: 9 | R19: 12 | S19: 22 | T19: 27 | U19: 37 | V19: 36 | W19: 38 | X19: 37 | Y19: 22 | Z19: 0
E20: Nově přijatí celkem | J20: 28 | K20: 15 | L20: 34 | M20: 41 | N20: 46 | O20: 43 | P20: 27 | Q20: 24 | R20: 55 | S20: 55 | T20: 63 | U20: 76 | V20: 51 | W20: 39 | X20: 54 | Y20: 32 | Z20: 35
E21: Veřejný | J21: 28 | K21: 15 | L21: 34 | M21: 41 | N21: 46 | O21: 43 | P21: 27 | Q21: 18 | R21: 54 | S21: 42 | T21: 57 | U21: 59 | V21: 46 | W21: 34 | X21: 48 | Y21: 32 | Z21: 35
E22: v tom | F22: MŠMT | J22: 0 | K22: 0 | L22: 0 | M22: 0 | N22: 0 | O22: 0 | P22: 0 | Q22: 0 | R22: 0 | S22: 0 | T22: 0 | U22: 0 | V22: 0 | W22: 0 | X22: 0 | Y22: 0 | Z22: 0
F23: obec | J23: 0 | K23: 0 | L23: 0 | M23: 0 | N23: 0 | O23: 0 | P23: 0 | Q23: 0 | R23: 0 | S23: 0 | T23: 0 | U23: 0 | V23: 0 | W23: 0 | X23: 0 | Y23: 0 | Z23: 0
F24: jiný resort | J24: 0 | K24: 0 | L24: 1 | M24: 0 | N24: 0 | O24: 0 | P24: 0 | Q24: 0 | R24: 0 | S24: 0 | T24: 0 | U24: 0 | V24: 0 | W24: 0 | X24: 0 | Y24: 0 | Z24: 0
F25: kraj | J25: 28 | K25: 15 | L25: 34 | M25: 41 | N25: 46 | O25: 43 | P25: 27 | Q25: 18 | R25: 54 | S25: 42 | T25: 57 | U25: 59 | V25: 46 | W25: 34 | X25: 48 | Y25: 32 | Z25: 35
E26: Privátní sektor | J26: 0 | K26: 0 | L26: 0 | M26: 0 | N26: 0 | O26: 0 | P26: 0 | Q26: 0 | R26: 0 | S26: 0 | T26: 0 | U26: 0 | V26: 0 | W26: 0 | X26: 0 | Y26: 0 | Z26: 0
E27: Církev | J27: 0 | K27: 0 | L27: 0 | M27: 0 | N27: 0 | O27: 0 | P27: 0 | Q27: 6 | R27: 1 | S27: 13 | T27: 6 | U27: 17 | V27: 5 | W27: 5 | X27: 6 | Y27: 0 | Z27: 0
E28: Absolventi celkem | J28: 51 | K28: 31 | L28: 26 | M28: 31 | N28: 27 | O28: 28 | P28: 16 | Q28: 23 | R28: 37 | S28: 32 | T28: 38 | U28: 28 | V28: 21 | W28: 42 | X28: 33 | Y28: 34 | Z28: .
E29: Veřejný | J29: 51 | K29: 31 | L29: 26 | M29: 31 | N29: 27 | O29: 28 | P29: 16 | Q29: 23 | R29: 37 | S29: 32 | T29: 38 | U29: 27 | V29: 19 | W29: 41 | X29: 26 | Y29: 34 | Z29: .
E30: v tom | F30: MŠMT | J30: 0 | K30: 0 | L30: 0 | M30: 0 | N30: 0 | O30: 0 | P30: 0 | Q30: 0 | R30: 0 | S30: 0 | T30: 0 | U30: 0 | V30: 0 | W30: 0 | X30: 0 | Y30: 0 | Z30: .
F31: obec | J31: 0 | K31: 0 | L31: 0 | M31: 0 | N31: 0 | O31: 0 | P31: 0 | Q31: 0 | R31: 0 | S31: 0 | T31: 0 | U31: 0 | V31: 0 | W31: 0 | X31: 0 | Y31: 0 | Z31: .
F32: jiný resort | J32: 22 | K32: 0 | L32: 0 | M32: 9 | N32: 12 | O32: 0 | P32: 0 | Q32: 0 | R32: 0 | S32: 0 | T32: 0 | U32: 0 | V32: 0 | W32: 0 | X32: 0 | Y32: 0 | Z32: .
F33: kraj | J33: 29 | K33: 31 | L33: 26 | M33: 22 | N33: 15 | O33: 28 | P33: 16 | Q33: 23 | R33: 37 | S33: 32 | T33: 38 | U33: 27 | V33: 19 | W33: 41 | X33: 26 | Y33: 34 | Z33: .
E34: Privátní sektor | J34: 0 | K34: 0 | L34: 0 | M34: 0 | N34: 0 | O34: 0 | P34: 0 | Q34: 0 | R34: 0 | S34: 0 | T34: 0 | U34: 0 | V34: 0 | W34: 0 | X34: 0 | Y34: 0 | Z34: .
E35: Církev | J35: 0 | K35: 0 | L35: 0 | M35: 0 | N35: 0 | O35: 0 | P35: 0 | Q35: 0 | R35: 0 | S35: 0 | T35: 0 | U35: 1 | V35: 2 | W35: 1 | X35: 7 | Y35: 0 | Z35: .
D36: Komentáře: | Z36: Zdroj: databáze MŠMT
D37: 1) | E37: V počtech absolventů nejsou započítáni absolventi, kteří ukončili vzdělávání maturitní zkouškou.

Sheet B6.6
D4: Tab. B6.6: | H4: Konzervatoře – počet podaných přihlášek, počet přijatých přihlášek a úspěšnost v 1. kole
B5: 18 | D5: přijímacího řízení do denní formy vzdělávání – ve školním roce 2009/10 až 2019/20 – podle zřizovatele a délky vzdělávání
D7: Zřizovatel Délka vzdělávání | J7: 2003/04 | K7: 2004/05 | L7: 2005/06 | M7: 2006/07 | N7: 2007/08 | O7: 2008/09 | P7: 2009/10 | Q7: 2010/11 | R7: 2011/12 | S7: 2012/13 | T7: 2013/14 | U7: 2014/15 | V7: 2015/16 | W7: 2016/17 | X7: 2017/18 | Y7: 2018/19 | Z7: 2019/20
J11: 1) | K11: 1) | P11: 1),2) | Q11: 2) | R11: 2) | S11: 3) | T11: 3) | U11: 3) | V11: 3) | W11: 3) | X11: 3) | Y11: 3) | Z11: 3)
D12: Počet podaných přihlášek v prvním kole přijímacího řízení do denní formy vzdělávání
E13: Přihlášení celkem | J13: . | K13: . | L13: 1756 | M13: 1378 | N13: 1470 | O13: 1518 | P13: 1491 | Q13: 1347 | R13: 1443 | S13: 1546 | T13: 1486 | U13: 1523 | V13: 1593 | W13: 1570 | X13: 1697 | Y13: 1712 | Z13: 1657
E14: v tom | F14: 6 a 7leté vzdělávání | J14: . | K14: . | L14: 1582 | M14: 1249 | N14: 1293 | O14: 1367 | P14: 1343 | Q14: 1217 | R14: 1297 | S14: 1431 | T14: 1348 | U14: 1388 | V14: 1427 | W14: 1395 | X14: 1502 | Y14: 1524 | Z14: 1485
F15: 8leté vzdělávání | J15: . | K15: . | L15: 174 | M15: 129 | N15: 177 | O15: 151 | P15: 148 | Q15: 130 | R15: 146 | S15: 115 | T15: 138 | U15: 135 | V15: 166 | W15: 175 | X15: 195 | Y15: 188 | Z15: 172
E16: Veřejný | J16: 1715 | K16: 1959 | L16: 1653 | M16: 1328 | N16: 1347 | O16: 1352 | P16: 1384 | Q16: 1242 | R16: 1339 | S16: 1317 | T16: 1268 | U16: 1380 | V16: 1379 | W16: 1345 | X16: 1439 | Y16: 1446 | Z16: 1424
E17: v tom | F17: 6 a 7leté vzdělávání | J17: 1568 | K17: 1768 | L17: 1538 | M17: 1235 | N17: 1242 | O17: 1243 | P17: 1279 | Q17: 1147 | R17: 1229 | S17: 1222 | T17: 1163 | U17: 1279 | V17: 1245 | W17: 1222 | X17: 1308 | Y17: 1311 | Z17: 1300
F18: 8leté vzdělávání | J18: 147 | K18: 191 | L18: 115 | M18: 93 | N18: 105 | O18: 109 | P18: 105 | Q18: 95 | R18: 110 | S18: 95 | T18: 105 | U18: 101 | V18: 134 | W18: 123 | X18: 131 | Y18: 135 | Z18: 124
E19: Soukromý1) | J19: . | K19: . | L19: 59 | M19: 36 | N19: 72 | O19: 114 | P19: 43 | Q19: 35 | R19: 36 | S19: 182 | T19: 165 | U19: 95 | V19: 165 | W19: 162 | X19: 196 | Y19: 173 | Z19: 153
E20: v tom | F20: 6 a 7leté vzdělávání | J20: . | K20: . | L20: 0 | M20: 0 | N20: 0 | O20: 72 | P20: 0 | Q20: 0 | R20: 0 | S20: 162 | T20: 132 | U20: 61 | V20: 133 | W20: 110 | X20: 132 | Y20: 120 | Z20: 105
F21: 8leté vzdělávání | J21: . | K21: . | L21: 59 | M21: 36 | N21: 72 | O21: 42 | P21: 43 | Q21: 35 | R21: 36 | S21: 20 | T21: 33 | U21: 34 | V21: 32 | W21: 52 | X21: 64 | Y21: 53 | Z21: 48
E22: Církev | J22: . | K22: . | L22: 44 | M22: 14 | N22: 51 | O22: 52 | P22: 64 | Q22: 70 | R22: 68 | S22: 47 | T22: 53 | U22: 48 | V22: 49 | W22: 63 | X22: 62 | Y22: 93 | Z22: 80
E23: v tom | F23: 6 a 7leté vzdělávání | J23: . | K23: . | L23: 44 | M23: 14 | N23: 51 | O23: 52 | P23: 64 | Q23: 70 | R23: 68 | S23: 47 | T23: 53 | U23: 48 | V23: 49 | W23: 63 | X23: 62 | Y23: 93 | Z23: 80
F24: 8leté vzdělávání | J24: . | K24: . | L24: 0 | M24: 0 | N24: 0 | O24: 0 | P24: 0 | Q24: 0 | R24: 0 | S24: 0 | T24: 0 | U24: 0 | V24: 0 | W24: 0 | X24: 0 | Y24: 0 | Z24: 0
D25: Počet přijatých přihlášek v prvním kole (červen) přijímacího řízení do denní formy vzdělávání
E26: Přijatí celkem | J26: . | K26: . | L26: 541 | M26: 519 | N26: 581 | O26: 658 | P26: 583 | Q26: 543 | R26: 564 | S26: 641 | T26: 625 | U26: 604 | V26: 645 | W26: 688 | X26: 662 | Y26: 685 | Z26: 659
E27: v tom | F27: 6 a 7leté vzdělávání | J27: . | K27: . | L27: 452 | M27: 442 | N27: 484 | O27: 561 | P27: 492 | Q27: 468 | R27: 463 | S27: 564 | T27: 544 | U27: 519 | V27: 547 | W27: 590 | X27: 549 | Y27: 584 | Z27: 573
F28: 8leté vzdělávání | J28: . | K28: . | L28: 89 | M28: 77 | N28: 97 | O28: 97 | P28: 91 | Q28: 75 | R28: 101 | S28: 77 | T28: 81 | U28: 85 | V28: 98 | W28: 98 | X28: 113 | Y28: 101 | Z28: 86
E29: Veřejný | J29: 394 | K29: 549 | L29: 503 | M29: 490 | N29: 514 | O29: 534 | P29: 531 | Q29: 485 | R29: 505 | S29: 552 | T29: 505 | U29: 535 | V29: 506 | W29: 541 | X29: 523 | Y29: 548 | Z29: 532
E30: v tom | F30: 6 a 7leté vzdělávání | J30: 306 | K30: 455 | L30: 432 | M30: 430 | N30: 450 | O30: 459 | P30: 457 | Q30: 432 | R30: 429 | S30: 489 | T30: 446 | U30: 469 | V30: 428 | W30: 482 | X30: 455 | Y30: 481 | Z30: 476
F31: 8leté vzdělávání | J31: 88 | K31: 94 | L31: 71 | M31: 60 | N31: 64 | O31: 75 | P31: 74 | Q31: 53 | R31: 76 | S31: 63 | T31: 59 | U31: 66 | V31: 78 | W31: 59 | X31: 68 | Y31: 67 | Z31: 56
E32: Soukromý1) | J32: . | K32: . | L32: 18 | M32: 17 | N32: 33 | O32: 94 | P32: 17 | Q32: 22 | R32: 25 | S32: 65 | T32: 83 | U32: 36 | V32: 109 | W32: 106 | X32: 93 | Y32: 80 | Z32: 79
E33: v tom | F33: 6 a 7leté vzdělávání | J33: . | K33: . | L33: 0 | M33: 0 | N33: 0 | O33: 72 | P33: 0 | Q33: 0 | R33: 0 | S33: 51 | T33: 61 | U33: 17 | V33: 89 | W33: 67 | X33: 48 | Y33: 46 | Z33: 49
F34: 8leté vzdělávání | J34: . | K34: . | L34: 18 | M34: 17 | N34: 33 | O34: 22 | P34: 17 | Q34: 22 | R34: 25 | S34: 14 | T34: 22 | U34: 19 | V34: 20 | W34: 39 | X34: 45 | Y34: 34 | Z34: 30
E35: Církev | J35: . | K35: . | L35: 20 | M35: 12 | N35: 34 | O35: 30 | P35: 35 | Q35: 36 | R35: 34 | S35: 24 | T35: 37 | U35: 33 | V35: 30 | W35: 41 | X35: 46 | Y35: 57 | Z35: 48
E36: v tom | F36: 6 a 7leté vzdělávání | J36: . | K36: . | L36: 20 | M36: 12 | N36: 34 | O36: 30 | P36: 35 | Q36: 36 | R36: 34 | S36: 24 | T36: 37 | U36: 33 | V36: 30 | W36: 41 | X36: 46 | Y36: 57 | Z36: 48
F37: 8leté vzdělávání | J37: . | K37: . | L37: 0 | M37: 0 | N37: 0 | O37: 0 | P37: 0 | Q37: 0 | R37: 0 | S37: 0 | T37: 0 | U37: 0 | V37: 0 | W37: 0 | X37: 0 | Y37: 0 | Z37: 0
D38: Úspěšnost v prvním kole přijímacího řízení do denní formy vzdělávání
E39: Celkem | J39: x | K39: x | L39: =L26/L13 -> 0.3080865604 | M39: =M26/M13 -> 0.3766328012 | N39: 0.3952380952 | O39: 0.4334650856 | P39: 0.3910127431 | Q39: 0.4031180401 | R39: 0.3908523909 | S39: 0.41461837 | T39: 0.4205921938 | U39: =U26/U13 -> 0.3965856861 | V39: 0.4048964218 | W39: 0.4382165605 | X39: 0.3901001768 | Y39: 0.4001168224 | Z39: 0.3977066989
E40: v tom | F40: 6 a 7leté vzdělávání | J40: x | K40: x | L40: =L27/L14 -> 0.2857142857 | M40: 0.3538831065 | N40: 0.3743232792 | O40: 0.4103877103 | P40: 0.366344006 | Q40: 0.3845521775 | R40: 0.3569776407 | S40: 0.394129979 | T40: 0.4035608309 | U40: 0.3739193084 | V40: 0.3833216538 | W40: 0.4229390681 | X40: 0.3655126498 | Y40: 0.3832020997 | Z40: 0.3858585859
F41: 8leté vzdělávání | J41: x | K41: x | L41: =L28/L15 -> 0.5114942529 | M41: 0.5968992248 | N41: 0.5480225989 | O41: 0.642384106 | P41: 0.6148648649 | Q41: 0.5769230769 | R41: 0.6917808219 | S41: 0.6695652174 | T41: 0.5869565217 | U41: 0.6296296296 | V41: 0.5903614458 | W41: 0.56 | X41: 0.5794871795 | Y41: 0.5372340426 | Z41: 0.5
E42: Veřejný | J42: 0.2297376093 | K42: 0.280245023 | L42: =L29/L16 -> 0.3042952208 | M42: 0.3689759036 | N42: 0.3815887157 | O42: 0.3949704142 | P42: 0.3836705202 | Q42: 0.3904991948 | R42: 0.3771471247 | S42: 0.4191343964 | T42: 0.3982649842 | U42: 0.3876811594 | V42: 0.3669325598 | W42: 0.4022304833 | X42: 0.3634468381 | Y42: 0.3789764869 | Z42: 0.3735955056
E43: v tom | F43: 6 a 7leté vzdělávání | J43: 0.1951530612 | K43: 0.2573529412 | L43: =L30/L17 -> 0.2808842653 | M43: 0.3481781377 | N43: 0.3623188406 | O43: 0.3692679002 | P43: 0.3573103987 | Q43: 0.3766346992 | R43: 0.3490642799 | S43: 0.4001636661 | T43: 0.3834909716 | U43: 0.3666927287 | V43: 0.3437751004 | W43: 0.3944353519 | X43: 0.3478593272 | Y43: 0.3668954996 | Z43: 0.3661538462
F44: 8leté vzdělávání | J44: 0.5986394558 | K44: 0.4921465969 | L44: =L31/L18 -> 0.6173913043 | M44: 0.6451612903 | N44: 0.6095238095 | O44: 0.6880733945 | P44: 0.7047619048 | Q44: 0.5578947368 | R44: 0.6909090909 | S44: 0.6631578947 | T44: 0.5619047619 | U44: 0.6534653465 | V44: 0.5820895522 | W44: 0.4796747967 | X44: 0.5190839695 | Y44: 0.4962962963 | Z44: 0.4516129032
E45: Soukromý1) | J45: x | K45: x | L45: =L32/L19 -> 0.3050847458 | M45: 0.4722222222 | N45: 0.4583333333 | O45: 0.8245614035 | P45: 0.3953488372 | Q45: 0.6285714286 | R45: 0.6944444444 | S45: 0.3571428571 | T45: 0.503030303 | U45: 0.3789473684 | V45: 0.6606060606 | W45: 0.6543209877 | X45: 0.4744897959 | Y45: 0.4624277457 | Z45: 0.5163398693
E46: v tom | F46: 6 a 7leté vzdělávání | J46: x | K46: x | L46: x | M46: x | N46: x | O46: x | P46: x | Q46: x | R46: x | S46: =S33/S20 -> 0.3148148148 | T46: =T33/T20 -> 0.4621212121 | U46: 0.2786885246 | V46: =V33/V20 -> 0.6691729323 | W46: =W33/W20 -> 0.6090909091 | X46: =X33/X20 -> 0.3636363636 | Y46: =Y33/Y20 -> 0.3833333333 | Z46: =Z33/Z20 -> 0.4666666667
F47: 8leté vzdělávání | J47: x | K47: x | L47: =L34/L21 -> 0.3050847458 | M47: 0.4722222222 | N47: 0.4583333333 | O47: 0.5238095238 | P47: 0.3953488372 | Q47: 0.6285714286 | R47: 0.6944444444 | S47: 0.7 | T47: 0.6666666667 | U47: 0.5588235294 | V47: 0.625 | W47: 0.75 | X47: 0.703125 | Y47: 0.641509434 | Z47: 0.625
E48: Církev | J48: x | K48: x | L48: =L35/L22 -> 0.4545454545 | M48: 0.8571428571 | N48: 0.6666666667 | O48: 0.5769230769 | P48: 0.546875 | Q48: 0.5142857143 | R48: 0.5 | S48: 0.5106382979 | T48: 0.6981132075 | U48: 0.6875 | V48: 0.612244898 | W48: 0.6507936508 | X48: 0.7419354839 | Y48: 0.6129032258 | Z48: 0.6
E49: v tom | F49: 6 a 7leté vzdělávání | J49: x | K49: x | L49: =L36/L23 -> 0.4545454545 | M49: 0.8571428571 | N49: 0.6666666667 | O49: 0.5769230769 | P49: 0.546875 | Q49: 0.5142857143 | R49: 0.5 | S49: 0.5106382979 | T49: 0.6981132075 | U49: 0.6875 | V49: 0.612244898 | W49: 0.6507936508 | X49: 0.7419354839 | Y49: 0.6129032258 | Z49: 0.6
F50: 8leté vzdělávání | J50: x | K50: x | L50: x | M50: x | N50: x | O50: x | P50: x | Q50: x | R50: x | S50: x | T50: x | U50: x | V50: x | W50: x | X50: x | Y50: x | Z50: x
D51: Komentáře: | Z51: Zdroj: databáze MŠMT
D52: 1) | E52: Ve školním roce 2009/10 bez dat Mezinárodní konzervatoře Praha.
D53: 2) | E53: Do školního roku 2008/09 v rámci prvního kola přijímacího řízení mohli žáci podat přihlášku pouze na jednu školu, ve školním roce 2009/10 byl systém přijímacího řízení změněn a žáci mohli podat tři přihlášky, údaje s minulými léty jsou proto nesrovnatelné.
D54: 3) | E54: Od školního roku 2012/13 v rámci prvního kola přijímacího řízení byl systém přijímacího řízení změněn a žáci si mohli podat pouze 2 přihlášky, údaje s minulými léty jsou proto nesrovnatelné.

Sheet B6.7
D4: Tab. B6.7: | H4: Konzervatoře – počet učitelů/žen (přepočtené počty – stavy k 30. 9.)
B5: 0 | D5: ve školním roce 2009/10 až 2019/20 – podle zřizovatele
D7: Zřizovatel | J7: 2003/04 | K7: 2004/05 | L7: 2005/06 | M7: 2006/07 | N7: 2007/08 | O7: 2008/09 | P7: 2009/10 | Q7: 2010/11 | R7: 2011/12 | S7: 2012/13 | T7: 2013/14 | U7: 2014/15 | V7: 2015/16 | W7: 2016/17 | X7: 2017/18 | Y7: 2018/19 | Z7: 2019/20
J11: 1) | K11: 1)
D12: Učitelé celkem | J12: . | K12: . | L12: 1019.6 | M12: 1083.9 | N12: 1046.3 | O12: 1000.5 | P12: 997.9 | Q12: 1030 | R12: 1120.7 | S12: 1126.6 | T12: 1157.9 | U12: 1063.4 | V12: 1062.9 | W12: 1059.7 | X12: 1040.8 | Y12: 1035.8 | Z12: 1069.8
D13: Veřejný | J13: . | K13: . | L13: 953.2 | M13: 994.1 | N13: 943.8 | O13: 898.7 | P13: 907.4 | Q13: 888.9 | R13: 877.9 | S13: 874.1 | T13: 892.6 | U13: 876.3 | V13: 874 | W13: 864.6 | X13: 865.2 | Y13: 872.2 | Z13: 885.6
E14: v tom | F14: MŠMT | J14: . | K14: . | L14: 49.4 | M14: 46.2 | N14: 32.9 | O14: 38.5 | P14: 37.9 | Q14: 37.9 | R14: 37 | S14: 35.4 | T14: 32.8 | U14: 33 | V14: 34 | W14: 30.6 | X14: 33.8 | Y14: 34.3 | Z14: 36.7
F15: obec | J15: . | K15: . | L15: 0 | M15: 0 | N15: 0 | O15: 0 | P15: 0 | Q15: 0 | R15: 0 | S15: 0 | T15: 0 | U15: 0 | V15: 0 | W15: 0 | X15: 0 | Y15: 0 | Z15: 0
F16: jiný resort | J16: . | K16: . | L16: 17 | M16: 14 | N16: 13.3 | O16: 0 | P16: 0 | Q16: 0 | R16: 0 | S16: 0 | T16: 0 | U16: 0 | V16: 0 | W16: 0 | X16: 0 | Y16: 0 | Z16: 0
F17: kraj | J17: . | K17: . | L17: 886.8 | M17: 933.9 | N17: 897.6 | O17: 860.2 | P17: 869.5 | Q17: 851 | R17: 840.9 | S17: 838.7 | T17: 859.8 | U17: 843.3 | V17: 840 | W17: 834 | X17: 831.4 | Y17: 837.9 | Z17: 848.9
D18: Neveřejný | J18: . | K18: . | L18: 66.4 | M18: 89.8 | N18: 102.5 | O18: 101.8 | P18: 90.5 | Q18: 141.1 | R18: 242.8 | S18: 252.5 | T18: 265.3 | U18: 187.1 | V18: 188.9 | W18: 195.1 | X18: 175.6 | Y18: 163.6 | Z18: 184.2
E19: v tom | F19: privátní sektor | J19: . | K19: . | L19: 34.9 | M19: 34.2 | N19: 45.1 | O19: 39.4 | P19: 32.2 | Q19: 84.2 | R19: 182.1 | S19: 186.9 | T19: 193.7 | U19: 113.1 | V19: 115.3 | W19: 120.5 | X19: 109.9 | Y19: 113 | Z19: 124.8
F20: církev | J20: . | K20: . | L20: 31.5 | M20: 55.6 | N20: 57.4 | O20: 62.4 | P20: 58.3 | Q20: 56.9 | R20: 60.7 | S20: 65.6 | T20: 71.6 | U20: 74 | V20: 73.6 | W20: 74.6 | X20: 65.7 | Y20: 50.6 | Z20: 59.4
E21: z toho ženy | J21: . | K21: . | L21: 514.4 | M21: 558.9 | N21: 520 | O21: 502.3 | P21: 524.7 | Q21: 515.5 | R21: 549.4 | S21: 560.9 | T21: 583.5 | U21: 530 | V21: 537.9 | W21: 538.6 | X21: 538 | Y21: 541.8 | Z21: 539
D22: Veřejný | J22: . | K22: . | L22: 466.9 | M22: 499.2 | N22: 465.1 | O22: 441.9 | P22: 463.3 | Q22: 438.6 | R22: 426.3 | S22: 424.5 | T22: 439.7 | U22: 417.5 | V22: 423.3 | W22: 419.8 | X22: 433.3 | Y22: 445.6 | Z22: 434.7
E23: v tom | F23: MŠMT | J23: . | K23: . | L23: 25.6 | M23: 24.9 | N23: 16.6 | O23: 18.4 | P23: 24.8 | Q23: 24.8 | R23: 19.5 | S23: 21.7 | T23: 18.7 | U23: 18.3 | V23: 22.1 | W23: 16 | X23: 17.5 | Y23: 32 | Z23: 16.6
F24: obec | J24: . | K24: . | L24: 0 | M24: 0 | N24: 0 | O24: 0 | P24: 0 | Q24: 0 | R24: 0 | S24: 0 | T24: 0 | U24: 0 | V24: 0 | W24: 0 | X24: 0 | Y24: 0 | Z24: 0
F25: jiný resort | J25: . | K25: . | L25: 4.8 | M25: 3.6 | N25: 3.4 | O25: 0 | P25: 0 | Q25: 0 | R25: 0 | S25: 0 | T25: 0 | U25: 0 | V25: 0 | W25: 0 | X25: 0 | Y25: 0 | Z25: 0
F26: kraj | J26: . | K26: . | L26: 436.5 | M26: 470.7 | N26: 445.1 | O26: 423.5 | P26: 438.5 | Q26: 413.8 | R26: 406.8 | S26: 402.8 | T26: 421 | U26: 399.2 | V26: 401.2 | W26: 403.8 | X26: 415.8 | Y26: 413.6 | Z26: 418.1
D27: Neveřejný | J27: . | K27: . | L27: 47.5 | M27: 59.7 | N27: 54.9 | O27: 60.4 | P27: 61.4 | Q27: 76.9 | R27: 123.1 | S27: 136.4 | T27: 143.8 | U27: 112.5 | V27: 114.6 | W27: 118.8 | X27: 104.7 | Y27: 96.2 | Z27: 104.3
E28: v tom | F28: privátní sektor | J28: . | K28: . | L28: 29.5 | M28: 27.9 | N28: 25.7 | O28: 30.4 | P28: 27 | Q28: 47.9 | R28: 90 | S28: 101 | T28: 104.5 | U28: 72.5 | V28: 73.9 | W28: 74.5 | X28: 67 | Y28: 68.2 | Z28: 70.7
F29: církev | J29: . | K29: . | L29: 18 | M29: 31.8 | N29: 29.2 | O29: 30 | P29: 34.4 | Q29: 29 | R29: 33.1 | S29: 35.4 | T29: 39.3 | U29: 40 | V29: 40.7 | W29: 44.3 | X29: 37.7 | Y29: 28 | Z29: 33.6
Z30: Zdroj: databáze MŠMT

Sheet B6.8
D4: Tab. B6.8: | H4: Konzervatoře, denní forma vzdělávání – žáci
B5: 0 | D5: ve školním roce 2009/10 až 2019/20 – podle území
D7: Území | J7: 2003/04 | K7: 2004/05 | L7: 2005/06 | M7: 2006/07 | N7: 2007/08 | O7: 2008/09 | P7: 2009/10 | Q7: 2010/11 | R7: 2011/12 | S7: 2012/13 | T7: 2013/14 | U7: 2014/15 | V7: 2015/16 | W7: 2016/17 | X7: 2017/18 | Y7: 2018/19 | Z7: 2019/20
E12: Česká republika | H12: CZ0 | J12: 3371 | K12: 3366 | L12: 3334 | M12: 3356 | N12: 3411 | O12: 3323 | P12: 3238 | Q12: 3349 | R12: 3311 | S12: 3395 | T12: 3418 | U12: 3464 | V12: 3423 | W12: 3500 | X12: 3495 | Y12: 3569 | Z12: 3612
E13: Praha | H13: CZ01 | J13: 1394 | K13: 1389 | L13: 1399 | M13: 1374 | N13: 1464 | O13: 1421 | P13: 1354 | Q13: 1511 | R13: 1524 | S13: 1628 | T13: 1647 | U13: 1688 | V13: 1670 | W13: 1709 | X13: 1687 | Y13: 1694 | Z13: 1713
F14: Hlavní město Praha | H14: CZ010 | J14: 1394 | K14: 1389 | L14: 1399 | M14: 1374 | N14: 1464 | O14: 1421 | P14: 1354 | Q14: 1511 | R14: 1524 | S14: 1628 | T14: 1647 | U14: 1688 | V14: 1670 | W14: 1709 | X14: 1687 | Y14: 1694 | Z14: 1713
E15: Střední Čechy | H15: CZ02 | J15: 0 | K15: 0 | L15: 0 | M15: 0 | N15: 0 | O15: 0 | P15: 0 | Q15: 0 | R15: 0 | S15: 0 | T15: 0 | U15: 0 | V15: 0 | W15: 0 | X15: 0 | Y15: 0 | Z15: 0
F16: Středočeský kraj | H16: CZ020 | J16: 0 | K16: 0 | L16: 0 | M16: 0 | N16: 0 | O16: 0 | P16: 0 | Q16: 0 | R16: 0 | S16: 0 | T16: 0 | U16: 0 | V16: 0 | W16: 0 | X16: 0 | Y16: 0 | Z16: 0
E17: Jihozápad | H17: CZ03 | J17: 348 | K17: 336 | L17: 335 | M17: 330 | N17: 339 | O17: 329 | P17: 332 | Q17: 328 | R17: 313 | S17: 311 | T17: 302 | U17: 297 | V17: 292 | W17: 312 | X17: 312 | Y17: 328 | Z17: 316
F18: Jihočeský kraj | H18: CZ031 | J18: 171 | K18: 168 | L18: 168 | M18: 163 | N18: 167 | O18: 161 | P18: 169 | Q18: 171 | R18: 159 | S18: 154 | T18: 147 | U18: 144 | V18: 143 | W18: 148 | X18: 146 | Y18: 165 | Z18: 148
F19: Plzeňský kraj | H19: CZ032 | J19: 177 | K19: 168 | L19: 167 | M19: 167 | N19: 172 | O19: 168 | P19: 163 | Q19: 157 | R19: 154 | S19: 157 | T19: 155 | U19: 153 | V19: 149 | W19: 164 | X19: 166 | Y19: 163 | Z19: 168
E20: Severozápad | H20: CZ04 | J20: 223 | K20: 219 | L20: 213 | M20: 194 | N20: 175 | O20: 149 | P20: 150 | Q20: 139 | R20: 126 | S20: 132 | T20: 129 | U20: 133 | V20: 133 | W20: 138 | X20: 145 | Y20: 157 | Z20: 162
F21: Karlovarský kraj | H21: CZ041 | J21: 0 | K21: 0 | L21: 0 | M21: 0 | N21: 0 | O21: 0 | P21: 0 | Q21: 0 | R21: 0 | S21: 0 | T21: 0 | U21: 0 | V21: 0 | W21: 0 | X21: 0 | Y21: 0 | Z21: 0
F22: Ústecký kraj | H22: CZ042 | J22: 223 | K22: 219 | L22: 213 | M22: 194 | N22: 175 | O22: 149 | P22: 150 | Q22: 139 | R22: 126 | S22: 132 | T22: 129 | U22: 133 | V22: 133 | W22: 138 | X22: 145 | Y22: 157 | Z22: 162
E23: Severovýchod | H23: CZ05 | J23: 167 | K23: 166 | L23: 157 | M23: 157 | N23: 161 | O23: 163 | P23: 154 | Q23: 149 | R23: 155 | S23: 154 | T23: 159 | U23: 167 | V23: 155 | W23: 168 | X23: 154 | Y23: 164 | Z23: 165
F24: Liberecký kraj | H24: CZ051 | J24: 0 | K24: 0 | L24: 0 | M24: 0 | N24: 0 | O24: 0 | P24: 0 | Q24: 0 | R24: 0 | S24: 0 | T24: 0 | U24: 0 | V24: 0 | W24: 0 | X24: 0 | Y24: 0 | Z24: 0
F25: Královéhradecký kraj | H25: CZ052 | J25: 0 | K25: 0 | L25: 0 | M25: 0 | N25: 0 | O25: 0 | P25: 0 | Q25: 0 | R25: 0 | S25: 0 | T25: 0 | U25: 0 | V25: 0 | W25: 0 | X25: 0 | Y25: 0 | Z25: 0
F26: Pardubický kraj | H26: CZ053 | J26: 167 | K26: 166 | L26: 157 | M26: 157 | N26: 161 | O26: 163 | P26: 154 | Q26: 149 | R26: 155 | S26: 154 | T26: 159 | U26: 167 | V26: 155 | W26: 168 | X26: 154 | Y26: 164 | Z26: 165
E27: Jihovýchod | H27: CZ06 | J27: 517 | K27: 528 | L27: 525 | M27: 527 | N27: 520 | O27: 520 | P27: 513 | Q27: 505 | R27: 499 | S27: 491 | T27: 480 | U27: 487 | V27: 493 | W27: 489 | X27: 499 | Y27: 489 | Z27: 493
F28: Kraj Vysočina | H28: CZ063 | J28: 0 | K28: 0 | L28: 0 | M28: 0 | N28: 0 | O28: 0 | P28: 0 | Q28: 0 | R28: 0 | S28: 0 | T28: 0 | U28: 0 | V28: 0 | W28: 0 | X28: 0 | Y28: 0 | Z28: 0
F29: Jihomoravský kraj | H29: CZ064 | J29: 517 | K29: 528 | L29: 525 | M29: 527 | N29: 520 | O29: 520 | P29: 513 | Q29: 505 | R29: 499 | S29: 491 | T29: 480 | U29: 487 | V29: 493 | W29: 489 | X29: 499 | Y29: 489 | Z29: 493
E30: Střední Morava | H30: CZ07 | J30: 275 | K30: 286 | L30: 279 | M30: 280 | N30: 270 | O30: 285 | P30: 295 | Q30: 293 | R30: 284 | S30: 289 | T30: 298 | U30: 303 | V30: 290 | W30: 296 | X30: 306 | Y30: 309 | Z30: 312
F31: Olomoucký kraj | H31: CZ071 | J31: 0 | K31: 0 | L31: 0 | M31: 0 | N31: 0 | O31: 0 | P31: 106 | Q31: 106 | R31: 109 | S31: 121 | T31: 119 | U31: 123 | V31: 117 | W31: 123 | X31: 127 | Y31: 124 | Z31: 128
F32: Zlínský kraj | H32: CZ072 | J32: 275 | K32: 286 | L32: 279 | M32: 280 | N32: 270 | O32: 285 | P32: 189 | Q32: 187 | R32: 175 | S32: 168 | T32: 179 | U32: 180 | V32: 173 | W32: 173 | X32: 179 | Y32: 185 | Z32: 184
E33: Moravskoslezsko | H33: CZ08 | J33: 447 | K33: 442 | L33: 426 | M33: 494 | N33: 482 | O33: 456 | P33: 440 | Q33: 424 | R33: 410 | S33: 390 | T33: 403 | U33: 389 | V33: 390 | W33: 388 | X33: 392 | Y33: 428 | Z33: 451
F34: Moravskoslezský kraj | H34: CZ080 | J34: 447 | K34: 442 | L34: 426 | M34: 494 | N34: 482 | O34: 456 | P34: 440 | Q34: 424 | R34: 410 | S34: 390 | T34: 403 | U34: 389 | V34: 390 | W34: 388 | X34: 392 | Y34: 428 | Z34: 451
Z35: Zdroj: databáze MŠMT

Sheet B6.9
D4: Tab. B6.9: | H4: Konzervatoře, denní forma vzdělávání – nově přijatí
B5: 0 | D5: ve školním roce 2009/10 až 2019/20 – podle území
D7: Území | J7: 2003/04 | K7: 2004/05 | L7: 2005/06 | M7: 2006/07 | N7: 2007/08 | O7: 2008/09 | P7: 2009/10 | Q7: 2010/11 | R7: 2011/12 | S7: 2012/13 | T7: 2013/14 | U7: 2014/15 | V7: 2015/16 | W7: 2016/17 | X7: 2017/18 | Y7: 2018/19 | Z7: 2019/20
E12: Česká republika | H12: CZ0 | J12: 562 | K12: 600 | L12: 524 | M12: 555 | N12: 598 | O12: 591 | P12: 571 | Q12: 591 | R12: 585 | S12: 637 | T12: 596 | U12: 618 | V12: 588 | W12: 636 | X12: 626 | Y12: 665 | Z12: 612
E13: Praha | H13: CZ01 | J13: 224 | K13: 244 | L13: 205 | M13: 208 | N13: 264 | O13: 251 | P13: 218 | Q13: 281 | R13: 270 | S13: 313 | T13: 279 | U13: 289 | V13: 270 | W13: 290 | X13: 308 | Y13: 307 | Z13: 299
F14: Hlavní město Praha | H14: CZ010 | J14: 224 | K14: 244 | L14: 205 | M14: 208 | N14: 264 | O14: 251 | P14: 218 | Q14: 281 | R14: 270 | S14: 313 | T14: 279 | U14: 289 | V14: 270 | W14: 290 | X14: 308 | Y14: 307 | Z14: 299
E15: Střední Čechy | H15: CZ02 | J15: 0 | K15: 0 | L15: 0 | M15: 0 | N15: 0 | O15: 0 | P15: 0 | Q15: 0 | R15: 0 | S15: 0 | T15: 0 | U15: 0 | V15: 0 | W15: 0 | X15: 0 | Y15: 0 | Z15: 0
F16: Středočeský kraj | H16: CZ020 | J16: 0 | K16: 0 | L16: 0 | M16: 0 | N16: 0 | O16: 0 | P16: 0 | Q16: 0 | R16: 0 | S16: 0 | T16: 0 | U16: 0 | V16: 0 | W16: 0 | X16: 0 | Y16: 0 | Z16: 0
E17: Jihozápad | H17: CZ03 | J17: 54 | K17: 56 | L17: 60 | M17: 56 | N17: 71 | O17: 64 | P17: 68 | Q17: 61 | R17: 53 | S17: 61 | T17: 58 | U17: 61 | V17: 62 | W17: 65 | X17: 57 | Y17: 65 | Z17: 52
F18: Jihočeský kraj | H18: CZ031 | J18: 28 | K18: 27 | L18: 29 | M18: 28 | N18: 38 | O18: 33 | P18: 36 | Q18: 33 | R18: 23 | S18: 29 | T18: 29 | U18: 30 | V18: 31 | W18: 34 | X18: 27 | Y18: 35 | Z18: 22
F19: Plzeňský kraj | H19: CZ032 | J19: 26 | K19: 29 | L19: 31 | M19: 28 | N19: 33 | O19: 31 | P19: 32 | Q19: 28 | R19: 30 | S19: 32 | T19: 29 | U19: 31 | V19: 31 | W19: 31 | X19: 30 | Y19: 30 | Z19: 30
E20: Severozápad | H20: CZ04 | J20: 35 | K20: 38 | L20: 28 | M20: 39 | N20: 27 | O20: 26 | P20: 38 | Q20: 28 | R20: 26 | S20: 34 | T20: 24 | U20: 26 | V20: 29 | W20: 29 | X20: 23 | Y20: 29 | Z20: 28
F21: Karlovarský kraj | H21: CZ041 | J21: 0 | K21: 0 | L21: 0 | M21: 0 | N21: 0 | O21: 0 | P21: 0 | Q21: 0 | R21: 0 | S21: 0 | T21: 0 | U21: 0 | V21: 0 | W21: 0 | X21: 0 | Y21: 0 | Z21: 0
F22: Ústecký kraj | H22: CZ042 | J22: 35 | K22: 38 | L22: 28 | M22: 39 | N22: 27 | O22: 26 | P22: 38 | Q22: 28 | R22: 26 | S22: 34 | T22: 24 | U22: 26 | V22: 29 | W22: 29 | X22: 23 | Y22: 29 | Z22: 28
E23: Severovýchod | H23: CZ05 | J23: 27 | K23: 29 | L23: 26 | M23: 30 | N23: 27 | O23: 25 | P23: 25 | Q23: 29 | R23: 31 | S23: 32 | T23: 30 | U23: 28 | V23: 22 | W23: 29 | X23: 26 | Y23: 32 | Z23: 26
F24: Liberecký kraj | H24: CZ051 | J24: 0 | K24: 0 | L24: 0 | M24: 0 | N24: 0 | O24: 0 | P24: 0 | Q24: 0 | R24: 0 | S24: 0 | T24: 0 | U24: 0 | V24: 0 | W24: 0 | X24: 0 | Y24: 0 | Z24: 0
F25: Královéhradecký kraj | H25: CZ052 | J25: 0 | K25: 0 | L25: 0 | M25: 0 | N25: 0 | O25: 0 | P25: 0 | Q25: 0 | R25: 0 | S25: 0 | T25: 0 | U25: 0 | V25: 0 | W25: 0 | X25: 0 | Y25: 0 | Z25: 0
F26: Pardubický kraj | H26: CZ053 | J26: 27 | K26: 29 | L26: 26 | M26: 30 | N26: 27 | O26: 25 | P26: 25 | Q26: 29 | R26: 31 | S26: 32 | T26: 30 | U26: 28 | V26: 22 | W26: 29 | X26: 26 | Y26: 32 | Z26: 26
E27: Jihovýchod | H27: CZ06 | J27: 97 | K27: 92 | L27: 88 | M27: 82 | N27: 82 | O27: 90 | P27: 81 | Q27: 66 | R27: 82 | S27: 80 | T27: 83 | U27: 89 | V27: 91 | W27: 84 | X27: 82 | Y27: 85 | Z27: 84
F28: Kraj Vysočina | H28: CZ063 | J28: 0 | K28: 0 | L28: 0 | M28: 0 | N28: 0 | O28: 0 | P28: 0 | Q28: 0 | R28: 0 | S28: 0 | T28: 0 | U28: 0 | V28: 0 | W28: 0 | X28: 0 | Y28: 0 | Z28: 0
F29: Jihomoravský kraj | H29: CZ064 | J29: 97 | K29: 92 | L29: 88 | M29: 82 | N29: 82 | O29: 90 | P29: 81 | Q29: 66 | R29: 82 | S29: 80 | T29: 83 | U29: 89 | V29: 91 | W29: 84 | X29: 82 | Y29: 85 | Z29: 84
E30: Střední Morava | H30: CZ07 | J30: 47 | K30: 59 | L30: 49 | M30: 48 | N30: 48 | O30: 61 | P30: 57 | Q30: 52 | R30: 52 | S30: 54 | T30: 53 | U30: 53 | V30: 48 | W30: 63 | X30: 57 | Y30: 51 | Z30: 54
F31: Olomoucký kraj | H31: CZ071 | J31: 0 | K31: 0 | L31: 0 | M31: 0 | N31: 0 | O31: 0 | P31: 23 | Q31: 22 | R31: 20 | S31: 26 | T31: 19 | U31: 21 | V31: 22 | W31: 32 | X31: 26 | Y31: 21 | Z31: 24
F32: Zlínský kraj | H32: CZ072 | J32: 47 | K32: 59 | L32: 49 | M32: 48 | N32: 48 | O32: 61 | P32: 34 | Q32: 30 | R32: 32 | S32: 28 | T32: 34 | U32: 32 | V32: 26 | W32: 31 | X32: 31 | Y32: 30 | Z32: 30
E33: Moravskoslezsko | H33: CZ08 | J33: 78 | K33: 82 | L33: 68 | M33: 92 | N33: 79 | O33: 74 | P33: 84 | Q33: 74 | R33: 71 | S33: 63 | T33: 69 | U33: 72 | V33: 66 | W33: 76 | X33: 73 | Y33: 96 | Z33: 69
F34: Moravskoslezský kraj | H34: CZ080 | J34: 78 | K34: 82 | L34: 68 | M34: 92 | N34: 79 | O34: 74 | P34: 84 | Q34: 74 | R34: 71 | S34: 63 | T34: 69 | U34: 72 | V34: 66 | W34: 76 | X34: 73 | Y34: 96 | Z34: 69
Z35: Zdroj: databáze MŠMT

Sheet B6.10
A1: x
D4: Tab. B6.10: | H4: Konzervatoře, denní forma vzdělávání – absolventi
B5: 0 | D5: ve školním roce 2009/10 až 2019/20 – podle území
D7: Území | J7: 2003/04 | K7: 2004/05 | L7: 2005/06 | M7: 2006/07 | N7: 2007/08 | O7: 2008/09 | P7: 2009/10 | Q7: 2010/11 | R7: 2011/12 | S7: 2012/13 | T7: 2013/14 | U7: 2014/15 | V7: 2015/16 | W7: 2016/17 | X7: 2017/18 | Y7: 2018/19 | Z7: 2019/20
E12: Česká republika | H12: CZ0 | J12: 432 | K12: 412 | L12: 427 | M12: 425 | N12: 463 | O12: 410 | P12: 371 | Q12: 350 | R12: 339 | S12: 362 | T12: 333 | U12: 353 | V12: 312 | W12: 325 | X12: 328 | Y12: 313 | Z12: .
E13: Praha | H13: CZ01 | J13: 178 | K13: 149 | L13: 194 | M13: 166 | N13: 207 | O13: 163 | P13: 151 | Q13: 162 | R13: 144 | S13: 162 | T13: 147 | U13: 149 | V13: 130 | W13: 136 | X13: 151 | Y13: 124 | Z13: .
F14: Hlavní město Praha | H14: CZ010 | J14: 178 | K14: 149 | L14: 194 | M14: 166 | N14: 207 | O14: 163 | P14: 151 | Q14: 162 | R14: 144 | S14: 162 | T14: 147 | U14: 149 | V14: 130 | W14: 136 | X14: 151 | Y14: 124 | Z14: .
E15: Střední Čechy | H15: CZ02 | J15: 0 | K15: 0 | L15: 0 | M15: 0 | N15: 0 | O15: 0 | P15: 0 | Q15: 0 | R15: 0 | S15: 0 | T15: 0 | U15: 0 | V15: 0 | W15: 0 | X15: 0 | Y15: 0 | Z15: .
F16: Středočeský kraj | H16: CZ020 | J16: 0 | K16: 0 | L16: 0 | M16: 0 | N16: 0 | O16: 0 | P16: 0 | Q16: 0 | R16: 0 | S16: 0 | T16: 0 | U16: 0 | V16: 0 | W16: 0 | X16: 0 | Y16: 0 | Z16: .
E17: Jihozápad | H17: CZ03 | J17: 52 | K17: 51 | L17: 47 | M17: 49 | N17: 49 | O17: 33 | P17: 33 | Q17: 38 | R17: 40 | S17: 43 | T17: 33 | U17: 33 | V17: 26 | W17: 31 | X17: 32 | Y17: 40 | Z17: .
F18: Jihočeský kraj | H18: CZ031 | J18: 19 | K18: 20 | L18: 24 | M18: 24 | N18: 24 | O18: 16 | P18: 20 | Q18: 12 | R18: 21 | S18: 27 | T18: 18 | U18: 21 | V18: 15 | W18: 14 | X18: 12 | Y18: 24 | Z18: .
F19: Plzeňský kraj | H19: CZ032 | J19: 33 | K19: 31 | L19: 23 | M19: 25 | N19: 25 | O19: 17 | P19: 13 | Q19: 26 | R19: 19 | S19: 16 | T19: 15 | U19: 12 | V19: 11 | W19: 17 | X19: 20 | Y19: 16 | Z19: .
E20: Severozápad | H20: CZ04 | J20: 23 | K20: 13 | L20: 20 | M20: 32 | N20: 28 | O20: 27 | P20: 15 | Q20: 7 | R20: 15 | S20: 12 | T20: 10 | U20: 16 | V20: 9 | W20: 10 | X20: 14 | Y20: 16 | Z20: .
F21: Karlovarský kraj | H21: CZ041 | J21: 0 | K21: 0 | L21: 0 | M21: 0 | N21: 0 | O21: 0 | P21: 0 | Q21: 0 | R21: 0 | S21: 0 | T21: 0 | U21: 0 | V21: 0 | W21: 0 | X21: 0 | Y21: 0 | Z21: .
F22: Ústecký kraj | H22: CZ042 | J22: 23 | K22: 13 | L22: 20 | M22: 32 | N22: 28 | O22: 27 | P22: 15 | Q22: 7 | R22: 15 | S22: 12 | T22: 10 | U22: 16 | V22: 9 | W22: 10 | X22: 14 | Y22: 16 | Z22: .
E23: Severovýchod | H23: CZ05 | J23: 27 | K23: 23 | L23: 23 | M23: 18 | N23: 22 | O23: 29 | P23: 23 | Q23: 16 | R23: 21 | S23: 20 | T23: 15 | U23: 28 | V23: 25 | W23: 29 | X23: 25 | Y23: 25 | Z23: .
F24: Liberecký kraj | H24: CZ051 | J24: 0 | K24: 0 | L24: 0 | M24: 0 | N24: 0 | O24: 0 | P24: 0 | Q24: 0 | R24: 0 | S24: 0 | T24: 0 | U24: 0 | V24: 0 | W24: 0 | X24: 0 | Y24: 0 | Z24: .
F25: Královéhradecký kraj | H25: CZ052 | J25: 0 | K25: 0 | L25: 0 | M25: 0 | N25: 0 | O25: 0 | P25: 0 | Q25: 0 | R25: 0 | S25: 0 | T25: 0 | U25: 0 | V25: 0 | W25: 0 | X25: 0 | Y25: 0 | Z25: .
F26: Pardubický kraj | H26: CZ053 | J26: 27 | K26: 23 | L26: 23 | M26: 18 | N26: 22 | O26: 29 | P26: 23 | Q26: 16 | R26: 21 | S26: 20 | T26: 15 | U26: 28 | V26: 25 | W26: 29 | X26: 25 | Y26: 25 | Z26: .
E27: Jihovýchod | H27: CZ06 | J27: 47 | K27: 63 | L27: 51 | M27: 59 | N27: 63 | O27: 64 | P27: 65 | Q27: 53 | R27: 54 | S27: 63 | T27: 61 | U27: 52 | V27: 52 | W27: 54 | X27: 43 | Y27: 54 | Z27: .
F28: Kraj Vysočina | H28: CZ063 | J28: 0 | K28: 0 | L28: 0 | M28: 0 | N28: 0 | O28: 0 | P28: 0 | Q28: 0 | R28: 0 | S28: 0 | T28: 0 | U28: 0 | V28: 0 | W28: 0 | X28: 0 | Y28: 0 | Z28: .
F29: Jihomoravský kraj | H29: CZ064 | J29: 47 | K29: 63 | L29: 51 | M29: 59 | N29: 63 | O29: 64 | P29: 65 | Q29: 53 | R29: 54 | S29: 63 | T29: 61 | U29: 52 | V29: 52 | W29: 54 | X29: 43 | Y29: 54 | Z29: .
E30: Střední Morava | H30: CZ07 | J30: 43 | K30: 47 | L30: 32 | M30: 42 | N30: 38 | O30: 36 | P30: 46 | Q30: 34 | R30: 32 | S30: 26 | T30: 30 | U30: 36 | V30: 37 | W30: 29 | X30: 25 | Y30: 32 | Z30: .
F31: Olomoucký kraj | H31: CZ071 | J31: 0 | K31: 0 | L31: 0 | M31: 0 | N31: 0 | O31: 13 | P31: 15 | Q31: 8 | R31: 9 | S31: 6 | T31: 7 | U31: 12 | V31: 16 | W31: 10 | X31: 8 | Y31: 10 | Z31: .
F32: Zlínský kraj | H32: CZ072 | J32: 43 | K32: 47 | L32: 32 | M32: 42 | N32: 38 | O32: 23 | P32: 31 | Q32: 26 | R32: 23 | S32: 20 | T32: 23 | U32: 24 | V32: 21 | W32: 19 | X32: 17 | Y32: 22 | Z32: .
E33: Moravskoslezsko | H33: CZ08 | J33: 62 | K33: 66 | L33: 60 | M33: 59 | N33: 56 | O33: 58 | P33: 38 | Q33: 40 | R33: 33 | S33: 36 | T33: 37 | U33: 39 | V33: 33 | W33: 36 | X33: 38 | Y33: 22 | Z33: .
F34: Moravskoslezský kraj | H34: CZ080 | J34: 62 | K34: 66 | L34: 60 | M34: 59 | N34: 56 | O34: 58 | P34: 38 | Q34: 40 | R34: 33 | S34: 36 | T34: 37 | U34: 39 | V34: 33 | W34: 36 | X34: 38 | Y34: 22 | Z34: .
Z35: Zdroj: databáze MŠMT

Sheet B6.11
D4: Tab. B6.11: | H4: Konzervatoře – přepočtené počty zaměstnanců
B5: 6 | D5: v letech 2009 až 2019
J6: 2003 | K6: 2004 | L6: 2005 | M6: 2006 | N6: 2007 | O6: 2008 | P6: 2009 | Q6: 2010 | R6: 2011 | S6: 2012 | T6: 2013 | U6: 2014 | V6: 2015 | W6: 2016 | X6: 2017 | Y6: 2018 | Z6: 2019
O7: 2008/09 | P7: 2009/10 | Q7: 2009/10 | R7: 2009/10 | S7: 2009/10 | T7: 2009/10 | U7: 2009/10 | V7: 2009/10 | W7: 2009/10 | X7: 2009/10 | Y7: 2009/11
D11: Všichni zřizovatelé (bez jiných resortů)
E12: Zaměstnanci celkem | J12: . | K12: . | L12: . | M12: 1114.864 | N12: 1128.616 | O12: 1131.412 | P12: 1126.862 | Q12: 1123.038 | R12: 1097.413 | S12: 1115.189 | T12: 1095.262 | U12: 1126.643 | V12: 1136.138 | W12: 1131.525 | X12: 1129.084 | Y12: 1123.029 | Z12: 1148.0791
F13: z toho učitelé1) | J13: . | K13: . | L13: . | M13: 927.646 | N13: 931.686 | O13: 929.894 | P13: 926.188 | Q13: 914.116 | R13: 898.892 | S13: 923.534 | T13: 905.753 | U13: 929.746 | V13: 938.542 | W13: 933.767 | X13: 931.994 | Y13: 922.7445 | Z13: 940.2609
D14: Komentáře: | Z14: Zdroj: databáze MŠMT
D15: 1) | E15: Včetně vedoucích zaměstnanců.

Sheet B6.12
D4: Tab. B6.12: | H4: Konzervatoře – průměrné měsíční mzdy zaměstnanců
B5: 30 | D5: v letech 2009 až 2019
J6: 2003 | K6: 2004 | L6: 2005 | M6: 2006 | N6: 2007 | O6: 2008 | P6: 2009 | Q6: 2010 | R6: 2011 | S6: 2012 | T6: 2013 | U6: 2014 | V6: 2015 | W6: 2016 | X6: 2017 | Y6: 2018 | Z6: 2019
O7: 2008/09 | P7: 2009/10 | Q7: 2009/10 | R7: 2009/10 | S7: 2009/10 | T7: 2009/10 | U7: 2009/10 | V7: 2009/10 | W7: 2009/10 | X7: 2009/10
D10: Všichni zřizovatelé (bez jiných resortů)
D11: Nominální mzda (v běžných cenách)
E12: Zaměstnanci celkem | J12: . | K12: . | L12: . | M12: 22485 | N12: 24083 | O12: 24743.62353 | P12: 26107.26676 | Q12: 25455.80092 | R12: 26373.30704 | S12: 25838.1515 | T12: 25684.56223 | U12: 26414.96752 | V12: 27444.16743 | W12: 28562.10468 | X12: 30879.98856 | Y12: 34168 | Z12: 38879.15628
F13: z toho učitelé1) | J13: . | K13: . | L13: . | M13: 24139 | N13: 25743 | O13: 26441.10762 | P13: 27616.18771 | Q13: 26877.71966 | R13: 27849.82373 | S13: 27163.41557 | T13: 27118.59092 | U13: 27938.62849 | V13: 29018.51959 | W13: 30310.19435 | X13: 32645.1625 | Y13: 36118.9 | Z13: 41349.92665
D14: Reálná mzda (ve stálých cenách roku 2015)
E15: Zaměstnanci celkem | J15: . | K15: . | L15: . | M15: =M12/M$18*100 -> 27090.36145 | N15: 28233.29426 | O15: 27280.73156 | P15: 28470.30181 | Q15: 27371.82894 | R15: 27819.94414 | S15: 26392.39173 | T15: 25865.62158 | U15: 26494.45087 | V15: =V12/V$18*100 -> 27444.16743 | W15: 28363.55976 | X15: =X12/X$18*100 -> 29951.4923 | Y15: 32448.24311 | Z15: 35899.49795
F16: z toho učitelé1) | J16: . | K16: . | L16: . | M16: =M13/M$18*100 -> 29083.13253 | N16: 30179.36694 | O16: 29152.2686 | P16: 30115.79903 | Q16: 28900.77383 | R16: 29377.45119 | S16: 27746.08332 | T16: 27309.75924 | U16: 28022.69658 | V16: 29018.51959 | W16: 30099.49787 | X16: =X13/X$18*100 -> 31663.59118 | Y16: 34300.94967 | Z16: 38180.91104
D17: Index spotřebitelských cen a meziroční inflace
E18: index spotřebitelských cen (rok 2015 = 100) | J18: 95.5 | K18: 98.1 | L18: 100 | M18: 83 | N18: 85.3 | O18: 90.7 | P18: 91.7 | Q18: 93 | R18: 94.8 | S18: 97.9 | T18: 99.3 | U18: 99.7 | V18: 100 | W18: 100.7 | X18: 103.1 | Y18: 105.3 | Z18: 108.3
E19: meziroční inflace | J19: 0.001 | K19: 0.028 | L19: 0.019 | M19: 0.025 | N19: 0.028 | O19: 0.063 | P19: 0.01 | Q19: 0.015 | R19: 0.019 | S19: 0.033 | T19: 0.014 | U19: 0.004 | V19: 0.003 | W19: 0.007 | X19: 0.025 | Y19: 0.021 | Z19: 0.028
D20: Komentáře: | Z20: Zdroj: databáze MŠMT, ČSÚ
D21: 1) | E21: Včetně vedoucích zaměstnanců.

Sheet B6.13
D4: Tab. B6.13: | G4: Konzervatoře – výdaje na konzervatoře
D5: v letech 2009 až 2019 (bez škol pro žáky se SVP)
J7: 2003 | K7: 2004 | L7: 2005 | M7: 2006 | N7: 2007 | O7: 2008 | P7: 2009 | Q7: 2010 | R7: 2011 | S7: 2012 | T7: 2013 | U7: 2014 | V7: 2015 | W7: 2016 | X7: 2017 | Y7: 2018 | Z7: 2019
D11: Celkové výdaje konzervatoře2)
E12: Celkem | J12: . | K12: . | L12: . | M12: . | N12: 587217.8 | O12: 583663.58 | P12: 649628.85 | Q12: 753234.69 | R12: 736396.265 | S12: 649363.4726 | T12: 662427.8997 | U12: =U13+U14 -> 676054.2075 | V12: 654270.509 | W12: 673479.6461 | X12: 744129.6802 | Y12: 880892.2353 | Z12: 1060408.21
E13: v tom | F13: neinvestiční výdaje | J13: . | K13: . | L13: . | M13: . | N13: 517936.56 | O13: 542662.91 | P13: 597332.36 | Q13: 600224.95 | R13: 609866.275 | S13: 620130.5626 | T13: 642362.8214 | U13: =U19+U25 -> 664525.2075 | V13: 651099.22 | W13: 667475.9775 | X13: 715867.5964 | Y13: 788341.3266 | Z13: 922896.926
F14: investiční výdaje | J14: . | K14: . | L14: . | M14: . | N14: 69281.24 | O14: 41000.67 | P14: 52296.49 | Q14: 153009.74 | R14: 126529.99 | S14: 29232.91 | T14: 20065.07829 | U14: =U26 -> 11529 | V14: 3171.289 | W14: 6003.66866 | X14: 28262.08382 | Y14: 92550.9087 | Z14: 137511.2845
E15: v % | F15: neinvestiční výdaje | J15: . | K15: . | L15: . | M15: . | N15: 0.8820178135 | O15: 0.9297529066 | P15: 0.9194978948 | Q15: 0.7968631264 | R15: 0.828176763 | S15: 0.9549822076 | T15: 0.9697097929 | U15: =U13/U12 -> 0.9829466338 | V15: 0.9951529391 | W15: 0.9910855975 | X15: 0.9620199482 | Y15: 0.8949350386 | Z15: 0.8703223126
F16: investiční výdaje | J16: . | K16: . | L16: . | M16: . | N16: 0.1179821865 | O16: 0.07024709337 | P16: 0.08050210516 | Q16: 0.2031368736 | R16: 0.171823237 | S16: 0.0450177924 | T16: 0.03029020713 | U16: =U14/U12 -> 0.01705336624 | V16: 0.004847060896 | W16: 0.008914402528 | X16: 0.03798005183 | Y16: 0.1050649614 | Z16: 0.1296776874
D17: Výdaje z rozpočtu kapitoly 333-MŠMT
E18: Celkem | J18: . | K18: . | L18: . | M18: . | N18: 23333 | O18: 24894 | P18: 54035.16 | Q18: 55536.21 | R18: 57313.055 | S18: 61239.5568 | T18: 65751.7852 | U18: 63059 | V18: =V19+V20 -> 40995.028 | W18: =W19+W20 -> 38817 | X18: =X19+X20 -> 37237.4666 | Y18: =Y19+Y20 -> 44188.8344 | Z18: =Z19+Z20 -> 51680.13783
E19: v tom | F19: neinvestiční výdaje | J19: . | K19: . | L19: . | M19: . | N19: 23333 | O19: 24894 | P19: 53555.16 | Q19: 55536.21 | R19: 57313.055 | S19: 61239.5568 | T19: 65751.7852 | U19: 63059 | V19: 40995.028 | W19: 38817 | X19: 37237.4666 | Y19: 44188.8344 | Z19: 51680.13783
F20: investiční výdaje | J20: . | K20: . | L20: . | M20: . | N20: 0 | O20: 0 | P20: 480 | Q20: 0 | R20: 0 | S20: 0 | T20: 0 | U20: 0 | V20: 0 | W20: 0 | X20: 0 | Y20: 0 | Z20: 0
E21: v % | F21: neinvestiční výdaje | J21: . | K21: . | L21: . | M21: . | N21: 1 | O21: 1 | P21: 0.991116895 | Q21: 1 | R21: 1 | S21: 1 | T21: 1 | U21: =U19/U18 -> 1 | V21: 1 | W21: 1 | X21: 1 | Y21: 1 | Z21: 1
F22: investiční výdaje | J22: . | K22: . | L22: . | M22: . | N22: 0 | O22: 0 | P22: 0.008883105001 | Q22: 0 | R22: 0 | S22: 0 | T22: 0 | U22: =U20/U18 -> 0 | V22: 0 | W22: 0 | X22: 0 | Y22: 0 | Z22: 0
D23: Výdaje z rozpočtu kapitoly 700-Obce a DSO, KÚ
E24: Celkem | J24: . | K24: . | L24: . | M24: . | N24: 563884.8 | O24: 558769.58 | P24: 595593.69 | Q24: =Q12-Q18 -> 697698.48 | R24: 679083.21 | S24: 591200.12 | T24: 596676.1145 | U24: =U25+U26 -> 612995.2075 | V24: 613275.481 | W24: 634662.6461 | X24: 706892.2136 | Y24: 836703.4009 | Z24: 1008728.073
E25: v tom | F25: neinvestiční výdaje | J25: . | K25: . | L25: . | M25: . | N25: 494603.56 | O25: 517768.91 | P25: 543777.2 | Q25: =Q13-Q19 -> 544688.74 | R25: 552553.22 | S25: 561967.21 | T25: 576611.0362 | U25: 601466.2075 | V25: 610104.192 | W25: 628658.9775 | X25: 678630.1298 | Y25: 744152.4922 | Z25: 871216.7882
F26: investiční výdaje | J26: . | K26: . | L26: . | M26: . | N26: 69281.24 | O26: 41000.67 | P26: 51816.49 | Q26: =Q14-Q20 -> 153009.74 | R26: 126529.99 | S26: 29232.91 | T26: 20065.07829 | U26: 11529 | V26: 3171.289 | W26: 6003.66866 | X26: 28262.08382 | Y26: 92550.9087 | Z26: 137511.2845
E27: v % | F27: neinvestiční výdaje | J27: . | K27: . | L27: . | M27: . | N27: 0.8771358263 | O27: 0.9266232961 | P27: 0.9130002704 | Q27: =Q25/Q24 -> 0.7806936028 | R27: 0.8136752785 | S27: 0.9505532746 | T27: 0.9663719096 | U27: =U25/U24 -> 0.9811923489 | V27: 0.9948289324 | W27: 0.9905403781 | X27: 0.9600192458 | Y27: 0.8893862406 | Z27: 0.8636785392
F28: investiční výdaje | J28: . | K28: . | L28: . | M28: . | N28: 0.1228641737 | O28: 0.07337670386 | P28: 0.08699972963 | Q28: =Q26/Q24 -> 0.2193063972 | R28: 0.1863247215 | S28: 0.04944672542 | T28: 0.03362809035 | U28: =U26/U24 -> 0.01880765112 | V28: 0.005171067649 | W28: 0.00945962189 | X28: 0.03998075417 | Y28: 0.1106137594 | Z28: 0.1363214608
D29: Podíl výdajů na konzervatoře z celkových výdajů na školství a podíl na HDP
E30: Výdaje na školství celkem v mld. Kč1),3) | J30: 114.2477725 | K30: 121.3480397 | L30: 128.5541745 | M30: 141.2484394 | N30: 151.5849897 | O30: 149.7997268 | P30: 162.803504 | Q30: 161.8748019 | R30: 172.7687959 | S30: 170.3742654 | T30: 171.7249628 | U30: 177.5906341 | V30: 181.6089812 | W30: 172.2724 | X30: 193.6421335 | Y30: 221.5246672 | Z30: 247.9172318
E31: Podíl výdajů na konzervatoře na celkových výdajích na školství | J31: . | K31: . | L31: . | M31: . | N31: =N12/1000000/N30 -> 0.003873851898 | O31: 0.003896292686 | P31: 0.003990263318 | Q31: 0.004653192967 | R31: 0.004262322147 | S31: 0.003811394115 | T31: 0.003857493337 | U31: 0.003806812285 | V31: 0.003602633001 | W31: =W12/1000000/W30 -> 0.003909387959 | X31: 0.003842808725 | Y31: 0.003976497274 | Z31: 0.004277267066
E32: HDP v mld. Kč v běžných cenách | J32: 2688.107 | K32: 3057.66 | L32: 3257.972 | M32: 3507.131 | N32: 3840.117 | O32: 4024.117 | P32: 3930.409 | Q32: 3962.464 | R32: 4033.755 | S32: 4059.912 | T32: 4098.128 | U32: 4313.789 | V32: 4595.783 | W32: 4773.24 | X32: 5055.029 | Y32: 5408.766 | Z32: 5748.668
E33: Výdaje na konzervatoře v % HDP | J33: . | K33: . | L33: . | M33: . | N33: =N12/1000000/N32 -> 0.0001529166429 | O33: 0.0001450414041 | P33: 0.0001652827606 | Q33: 0.0001900925005 | R33: 0.0001825585007 | S33: 0.0001599452088 | T33: 0.0001616415836 | U33: 0.0001567193499 | V33: 0.0001423632293 | W33: =W12/1000000/W32 -> 0.0001410948635 | X33: 0.0001472058183 | Y33: 0.0001628638095 | Z33: 0.0001844615501
D34: Dotace soukromým a církevním konzervatořím z kapitoly 333-MŠMT
E35: Celkem | J35: . | K35: . | L35: . | M35: . | N35: 47212.274 | O35: . | P35: . | Q35: . | R35: . | S35: . | T35: . | U35: . | V35: . | W35: . | X35: . | Y35: . | Z35: .
E36: v tom | F36: dotace soukromým konzervatořím4) | J36: . | K36: . | L36: . | M36: . | N36: 23879.274 | O36: . | P36: . | Q36: . | R36: . | S36: . | T36: . | U36: . | V36: . | W36: . | X36: . | Y36: . | Z36: .
F37: dotace církevním konzervatořím 5) | J37: . | K37: . | L37: . | M37: . | N37: 23333 | O37: 24894 | P37: 27969 | Q37: 29782 | R37: 30272 | S37: 32701 | T37: 36820 | U37: 38664 | V37: 39520 | W37: 38817 | X37: 36487.271 | Y37: 41436.175 | Z37: 47379.024
D38: Komentáře: | Z38: Zdroj: Státní závěrečný účet, ZÚ - kapitola 333-MŠMT; 700-Obce a DSO, KÚ; ČSÚ; monitor.statnipokladna.cz
D39: 1) | E39: Celkové výdaje kapitoly 333-MŠMT a kapitoly 700-Obce a DSO; KÚ. Nejsou zahrnuty výdaje Ministerstva obrany.
D40: 2) | E40: Konzervatoře jsou v rozpočtové skladbě samostatně sledovány od roku 2007.
D41: 3) | E41: Meziroční snížení výdajů v roce 2008 je dáno aplikací zákona č. 26/2008 Sb. a z něj vyplývajícím nepřeváděním nevyčerpaných prostředků OSS do rezervních fondů, a tudíž jejich nezahrnutím do čerpání.
D42: 4) | E42: Od roku 2008 nejsou k dispozici údaje o dotacích soukromým školám v potřebném členění.
D43: 5) | E43: Jedná se o uvolněné prostředky odpovídající hodnotám, na co bylo příjemcům dotačních prostředků vystavena rozhodnutí o poskytnutí dotace a co příjemcům dotačních prostředků skutečně v součtu za všechna rozhodnutí o poskytnutí dotace v příslušném roce odešlo.

Sheet GB1
D4: Obr. B1: | G4: Konzervatoře, denní forma vzdělávání – žáci, nově přijatí a absolventi ve školním roce 2009/10 až 2019/20 – podle délky vzdělávání
K10: 2003/04 | L10: 2004/05 | M10: 2005/06 | N10: 2007/08 | O10: 2008/09 | P10: 2009/10 | Q10: 2010/11 | R10: 2011/12 | S10: 2012/13 | T10: 2013/14 | U10: 2014/15 | V10: 2015/16 | W10: 2016/17 | X10: 2017/18 | Y10: 2018/19 | Z10: 2019/20
J11: nově přijatí do 1. ročníku na 6 a 7leté vzdělávání | K11: 460 | L11: 498 | M11: 452 | N11: 524 | O11: 518 | P11: 501 | Q11: 540 | R11: 518 | S11: 575 | T11: 526 | U11: 540 | V11: 499 | W11: 547 | X11: 543 | Y11: 579 | Z11: 539
J12: nově přijatí do 1. ročníku na 8leté vzdělávání | K12: 102 | L12: 102 | M12: 72 | N12: 74 | O12: 73 | P12: 70 | Q12: 51 | R12: 67 | S12: 62 | T12: 70 | U12: 78 | V12: 89 | W12: 89 | X12: 83 | Y12: 86 | Z12: 73
J13: žáci 6 a 7leté vzdělávání | K13: 2700 | L13: 2688 | M13: 2679 | N13: 2752 | O13: 2725 | P13: 2653 | Q13: 2792 | R13: 2783 | S13: 2880 | T13: 2892 | U13: 2915 | V13: 2822 | W13: 2902 | X13: 2893 | Y13: 2978 | Z13: 3033
J14: žáci 8leté vzdělávání | K14: 671 | L14: 678 | M14: 655 | N14: 659 | O14: 598 | P14: 585 | Q14: 557 | R14: 528 | S14: 515 | T14: 526 | U14: 549 | V14: 601 | W14: 598 | X14: 602 | Y14: 591 | Z14: 579
K17: 2003/04 | L17: 2004/05 | M17: 2005/06 | N17: 2007/08 | O17: 2008/09 | P17: 2009/10 | Q17: 2010/11 | R17: 2011/12 | S17: 2012/13 | T17: 2013/14 | U17: 2014/15 | V17: 2015/16 | W17: 2016/17 | X17: 2017/18 | Y17: 2018/19 | Z17: 2019/20
J18: absolventi 6 a 7leté vzdělávání | K18: 377 | L18: 335 | M18: 340 | N18: 386 | O18: 343 | P18: 318 | Q18: 298 | R18: 300 | S18: 305 | T18: 303 | U18: 323 | V18: 268 | W18: 277 | X18: 297 | Y18: 278
J19: absolventi 8leté vzdělávání | K19: 43 | L19: 55 | M19: 65 | N19: 74 | O19: 63 | P19: 53 | Q19: 52 | R19: 39 | S19: 57 | T19: 30 | U19: 30 | V19: 44 | W19: 48 | X19: 31 | Y19: 35
J20: žáci 6 a 7leté vzdělávání | K20: 2700 | L20: 2688 | M20: 2679 | N20: 2752 | O20: 2725 | P20: 2653 | Q20: 2792 | R20: 2783 | S20: 2880 | T20: 2892 | U20: 2915 | V20: 2822 | W20: 2902 | X20: 2893 | Y20: 2978 | Z20: 3033
J21: žáci 8leté vzdělávání | K21: 671 | L21: 678 | M21: 655 | N21: 659 | O21: 598 | P21: 585 | Q21: 557 | R21: 528 | S21: 515 | T21: 526 | U21: 549 | V21: 601 | W21: 598 | X21: 602 | Y21: 591 | Z21: 579
Z45: Zdroj: databáze MŠMT

Sheet GB2
D4: Obr. B2: | G4: Konzervatoře – všichni zřizovatelé – přepočtené počty zaměstnanců a učitelů,
D5: průměrné měsíční nominální mzdy a reálné mzdy pracovníků v letech 2009 až 2019
J9: zaměstnanci
K10: 2007 | L10: 2008 | M10: 2009 | N10: 2010 | O10: 2011 | P10: 2012 | Q10: 2013 | R10: 2014 | S10: 2015 | T10: 2016 | U10: 2017 | V10: 2018 | W10: 2019
J11: nominální mzdy | K11: 24083 | L11: 24743.62353 | M11: ='B6.12'!P12 -> 26107.26676 | N11: ='B6.12'!Q12 -> 25455.80092 | O11: ='B6.12'!R12 -> 26373.30704 | P11: ='B6.12'!S12 -> 25838.1515 | Q11: ='B6.12'!T12 -> 25684.56223 | R11: ='B6.12'!U12 -> 26414.96752 | S11: ='B6.12'!V12 -> 27444.16743 | T11: ='B6.12'!W12 -> 28562.10468 | U11: ='B6.12'!X12 -> 30879.98856 | V11: ='B6.12'!Y12 -> 34168 | W11: ='B6.12'!Z12 -> 38879.15628
J12: reálné mzdy | K12: 28233.29426 | L12: 27280.73156 | M12: ='B6.12'!P15 -> 28470.30181 | N12: ='B6.12'!Q15 -> 27371.82894 | O12: ='B6.12'!R15 -> 27819.94414 | P12: ='B6.12'!S15 -> 26392.39173 | Q12: ='B6.12'!T15 -> 25865.62158 | R12: ='B6.12'!U15 -> 26494.45087 | S12: ='B6.12'!V15 -> 27444.16743 | T12: ='B6.12'!W15 -> 28363.55976 | U12: ='B6.12'!X15 -> 29951.4923 | V12: ='B6.12'!Y15 -> 32448.24311 | W12: ='B6.12'!Z15 -> 35899.49795
J13: počty | K13: 1.128616 | L13: 1.131412 | M13: ='B6.11'!P12/1000 -> 1.126862 | N13: ='B6.11'!Q12/1000 -> 1.123038 | O13: ='B6.11'!R12/1000 -> 1.097413 | P13: ='B6.11'!S12/1000 -> 1.115189 | Q13: ='B6.11'!T12/1000 -> 1.095262 | R13: ='B6.11'!U12/1000 -> 1.126643 | S13: ='B6.11'!V12/1000 -> 1.136138 | T13: ='B6.11'!W12/1000 -> 1.131525 | U13: ='B6.11'!X12/1000 -> 1.129084 | V13: ='B6.11'!Y12/1000 -> 1.123029 | W13: ='B6.11'!Z12/1000 -> 1.1480791
J15: učitelé
K16: 2007 | L16: 2008 | M16: 2009 | N16: 2010 | O16: 2011 | P16: 2012 | Q16: 2013 | R16: 2014 | S16: 2015 | T16: 2016 | U16: 2017 | V16: 2018 | W16: 2019
J17: nominální mzdy | K17: 25743 | L17: 26441.10762 | M17: ='B6.12'!P13 -> 27616.18771 | N17: ='B6.12'!Q13 -> 26877.71966 | O17: ='B6.12'!R13 -> 27849.82373 | P17: ='B6.12'!S13 -> 27163.41557 | Q17: ='B6.12'!T13 -> 27118.59092 | R17: ='B6.12'!U13 -> 27938.62849 | S17: ='B6.12'!V13 -> 29018.51959 | T17: ='B6.12'!W13 -> 30310.19435 | U17: ='B6.12'!X13 -> 32645.1625 | V17: ='B6.12'!Y13 -> 36118.9 | W17: ='B6.12'!Z13 -> 41349.92665
J18: reálné mzdy | K18: 30179.36694 | L18: 29152.2686 | M18: ='B6.12'!P16 -> 30115.79903 | N18: ='B6.12'!Q16 -> 28900.77383 | O18: ='B6.12'!R16 -> 29377.45119 | P18: ='B6.12'!S16 -> 27746.08332 | Q18: ='B6.12'!T16 -> 27309.75924 | R18: ='B6.12'!U16 -> 28022.69658 | S18: ='B6.12'!V16 -> 29018.51959 | T18: ='B6.12'!W16 -> 30099.49787 | U18: ='B6.12'!X16 -> 31663.59118 | V18: ='B6.12'!Y16 -> 34300.94967 | W18: ='B6.12'!Z16 -> 38180.91104
J19: počty | K19: 0.931686 | L19: 0.929894 | M19: ='B6.11'!P13/1000 -> 0.926188 | N19: ='B6.11'!Q13/1000 -> 0.914116 | O19: ='B6.11'!R13/1000 -> 0.898892 | P19: ='B6.11'!S13/1000 -> 0.923534 | Q19: ='B6.11'!T13/1000 -> 0.905753 | R19: ='B6.11'!U13/1000 -> 0.929746 | S19: ='B6.11'!V13/1000 -> 0.938542 | T19: ='B6.11'!W13/1000 -> 0.933767 | U19: ='B6.11'!X13/1000 -> 0.931994 | V19: ='B6.11'!Y13/1000 -> 0.9227445 | W19: ='B6.11'!Z13/1000 -> 0.9402609
D39: Komentáře: | X39: Zdroj: databáze MŠMT, ČSÚ
E40: Průměrná reálná měsíční mzda ve stálých cenách roku 2015.
D41: 1) | E41: Učitelé včetně vedoucích zaměstnanců.
